Workbook

Sheet 数値積分
A1: 数値積分法
A3: m(d^2x/dt^2)=-kx+Fcosωt | E3: 運動方程式
A4: xr=(1/2)tsinωt | E4: 解析解
A5: dx1/dt=x2 | E5: 位置の微係数
A6: dx2/dt=-(k/m)x1+(F/m)cosωt | E6: 速度の微係数
A7: m | B7: 10 | C7: [kg] | E7: 質量
A8: k | B8: 40 | C8: [N/m] | E8: バネ定数
A9: F | B9: 20 | C9: [N] | E9: 外力
A10: ω | B10: 2 | C10: [rad/s] | E10: 角速度
A11: k/m | B11: =B8/B7 -> 4 | C11: [N/(kgm)]
A12: F/m | B12: =B9/B7 -> 2 | C12: [N/kg]
A13: h | B13: 0.01 | C13: [s] | E13: 積分刻み
A14: x10 | B14: 0 | C14: [m] | E14: 初期位置
A15: x20 | B15: 0 | C15: [m/s] | E15: 初期速度
H16: ルンゲクッタ法
C17: オイラー法 | L17: xn+1=xn+(1/6)(k1+2k2+2k3+k4) | P17: k11=hf1(tn,x1n) | T17: xn+1=xn+(1/6)(k1+2k2+2k3+k4) | X17: k21=hf2(tn,x1n)
C18: xn+1=xn+hf(tn,xn) | L18: f1=hx2 | P18: k12=hf1(tn+h/2,x1n+k11/2) | T18: f2=-(k/m)x1+(F/m)cosωt | X18: k22=hf2(tn+h/2,x1n+k21/2)
C19: f1=x2 | G19: 解析解 | P19: k13=hf1(tn+h/2,x1n+k12/2) | X19: k23=hf2(tn+h/2,x1n+k22/2) | AB19: 解析解
A20: 時間 | B20: 解析解 | C20: f2=-(k/m)x1+(F/m)cosωt | G20: との差 | P20: k14=hf1(tn+h,x1n+k3) | X20: k24=hf2(tn+h,x1n+k23) | AB20: との差
A21: t | B21: xr | C21: x1 | D21: x2 | E21: f1 | F21: f2 | G21: x1-xr | H21: tn | I21: tn+h/2 | J21: tn+h/2 | K21: tn+h | L21: x1n | M21: x1n+k11/2 | N21: x1n+k12/2 | O21: x1n+k13 | P21: k11 | Q21: k12 | R21: k13 | S21: k14 | T21: x2n | U21: x2n+k21/2 | V21: x2n+k22/2 | W21: x2n+k23 | X21: k21 | Y21: k22 | Z21: k23 | AA21: k24 | AB21: x1n-xr
A22: [s] | B22: [m] | C22: [m] | D22: [m/s] | E22: [m/s] | F22: [m/s^2] | G22: [m] | H22: [s] | I22: [s] | J22: [s] | K22: [s] | L22: [m] | M22: [m] | N22: [m] | O22: [m] | P22: [m/s] | Q22: [m/s] | R22: [m/s] | S22: [m/s] | T22: [m/s] | U22: [m/s] | V22: [m/s] | W22: [m/s] | X22: [m/s^2] | Y22: [m/s^2] | Z22: [m/s^2] | AA22: [m/s^2] | AB22: [m]
A23: 0 | B23: =$B$14+0.5*A23*SIN($B$10*A23) -> 0 | C23: =$B$14 -> 0 | D23: =$B$15 -> 0 | E23: =D23 -> 0 | F23: =-$B$11*C23+$B$12*COS($B$10*A23) -> 2 | G23: =C23-B23 -> 0 | H23: =A23 -> 0 | I23: =$H23+$B$13/2 -> 0.005 | J23: 0.005 | K23: =$H23+$B$13 -> 0.01 | L23: =$B$14 -> 0 | M23: =$L23+P23/2 -> 0 | N23: =$L23+Q23/2 -> 5e-05 | O23: =$L23+R23/2 -> 4.999750002e-05 | P23: =$B$13*T23 -> 0 | Q23: =$B$13*U23 -> 0.0001 | R23: 9.999500004e-05 | S23: 0.0001999700001 | T23: =$B$15 -> 0 | U23: =$T23+X23/2 -> 0.01 | V23: =$T23+Y23/2 -> 0.009999500004 | W23: =$T23+Z23 -> 0.01999700001 | X23: =$B$13*(-$B$11*L23+$B$12*COS($B$10*H23)) -> 0.02 | Y23: =$B$13*(-$B$11*M23+$B$12*COS($B$10*I23)) -> 0.01999900001 | Z23: 0.01999700001 | AA23: 0.01999400023 | AB23: =L23-B23 -> 0
A24: =A23+$B$13 -> 0.01 | B24: =$B$14+0.5*A24*SIN($B$10*A24) -> 9.999333347e-05 | C24: =C23+$B$13*E23 -> 0 | D24: =D23+$B$13*F23 -> 0.02 | E24: =D24 -> 0.02 | F24: =-$B$11*C24+$B$12*COS($B$10*A24) -> 1.999600013 | G24: =C24-B24 -> -9.999333347e-05 | H24: =A24 -> 0.01 | I24: 0.015 | J24: 0.015 | K24: 0.02 | L24: =L23+(1/6)*(P23+2*Q23+2*R23+S23) -> 9.999333336e-05 | M24: =$L24+P24/2 -> 0.0001999816669 | N24: =$L24+Q24/2 -> 0.0002499616679 | O24: =$L24+R24 -> 0.0003998850075 | P24: =$B$13*T24 -> 0.0001999766671 | Q24: =$B$13*U24 -> 0.0002999366691 | R24: =$B$13*V24 -> 0.0002998916742 | S24: =$B$13*W24 -> 0.0003997866892 | T24: =T23+(1/6)*(X23+2*Y23+2*Z23+AA23) -> 0.01999766671 | U24: =$T24+X24/2 -> 0.02999366691 | V24: 0.02998916742 | W24: =$T24+Z24 -> 0.03997866892 | X24: =$B$13*(-$B$11*L24+$B$12*COS($B$10*H24)) -> 0.0199920004 | Y24: =$B$13*(-$B$11*M24+$B$12*COS($B$10*I24)) -> 0.01998300141 | Z24: =$B$13*(-$B$11*N24+$B$12*COS($B$10*J24)) -> 0.01998100221 | AA24: =$B$13*(-$B$11*O24+$B$12*COS($B$10*K24)) -> 0.01996800673 | AB24: =L24-B24 -> -1.055543728e-13
A25: =A24+$B$13 -> 0.02 | B25: =$B$14+0.5*A25*SIN($B$10*A25) -> 0.0003998933419 | C25: =C24+$B$13*E24 -> 0.0002 | D25: =D24+$B$13*F24 -> 0.03999600013 | E25: 0.03999600013 | F25: =-$B$11*C25+$B$12*COS($B$10*A25) -> 1.997600213 | G25: -0.0001998933419 | H25: =A25 -> 0.02 | I25: 0.025 | J25: 0.025 | K25: 0.03 | L25: =L24+(1/6)*(P24+2*Q24+2*R24+S24) -> 0.0003998966738 | M25: =$L25+P25/2 -> 0.000599791686 | N25: =$L25+Q25/2 -> 0.0006497117017 | O25: =$L25+R25 -> 0.0008994417659 | P25: =$B$13*T25 -> 0.0003997900244 | Q25: =$B$13*U25 -> 0.0004996300557 | R25: =$B$13*V25 -> 0.0004995450921 | S25: =$B$13*W25 -> 0.0005992801918 | T25: =T24+(1/6)*(X24+2*Y24+2*Z24+AA24) -> 0.03997900244 | U25: =$T25+X25/2 -> 0.04996300557 | V25: =$T25+Y25/2 -> 0.04995450921 | W25: =$T25+Z25 -> 0.05992801918 | X25: =$B$13*(-$B$11*L25+$B$12*COS($B$10*H25)) -> 0.01996800627 | Y25: =$B$13*(-$B$11*M25+$B$12*COS($B$10*I25)) -> 0.01995101354 | Z25: =$B$13*(-$B$11*N25+$B$12*COS($B$10*J25)) -> 0.01994901674 | AA25: =$B$13*(-$B$11*O25+$B$12*COS($B$10*K25)) -> 0.01992803313 | AB25: 3.331966815e-09
A26: 0.03 | B26: 0.0008994600972 | C26: 0.0005999600013 | D26: =D25+$B$13*F25 -> 0.05997200227 | E26: 0.05997200227 | F26: 1.99400124 | G26: -0.0002995000959 | H26: 0.03 | I26: 0.035 | J26: 0.035 | K26: 0.04 | L26: 0.0008994667591 | M26: 0.001199108521 | N26: 0.001248928602 | O26: 0.001598265562 | P26: 0.0005992835243 | Q26: 0.000698923685 | R26: 0.0006987988026 | S26: 0.0007982941529 | T26: 0.05992835243 | U26: 0.0698923685 | V26: 0.06987988026 | W26: 0.07982941529 | X26: 0.01992803213 | Y26: 0.01990305566 | Z26: 0.01990106286 | AA26: 0.0198721035 | AB26: 6.661940268e-09
A27: 0.04 | B27: 0.001598293879 | C27: 0.001199680024 | D27: 0.07991201467 | E27: 0.07991201467 | F27: 1.988804693 | G27: -0.0003986138554 | H27: 0.04 | I27: 0.045 | J27: 0.045 | K27: 0.05 | L27: 0.001598303868 | M27: 0.001997452607 | N27: 0.002047132862 | O27: 0.002495797129 | P27: 0.0007982974788 | Q27: 0.0008976579886 | R27: 0.0008974932616 | S27: 0.0009966691722 | T27: 0.07982974788 | U27: 0.08976579886 | V27: 0.08974932616 | W27: 0.09966691722 | X27: 0.01987210197 | Y27: 0.01983915656 | Z27: 0.01983716935 | AA27: 0.01980025142 | AB27: 9.988483783e-09
A28: 0.05 | B28: 0.002495835416 | C28: 0.001998800171 | D28: 0.09980006159 | E28: 0.09980006159 | F28: 1.98201313 | G28: -0.0004970352455 | H28: 0.05 | I28: 0.055 | J28: 0.055 | K28: 0.06 | L28: 0.002495848726 | M28: 0.00299418497 | N28: 0.003043685594 | O28: 0.003591317987 | P28: 0.0009966724874 | Q28: 0.001095673734 | R28: 0.00109546926 | S28: 0.001194246233 | T28: 0.09966724874 | U28: 0.1095673734 | V28: 0.109546926 | W28: 0.1194246233 | X28: 0.01980024936 | Y28: 0.01975935456 | Z28: 0.01975737454 | AA28: 0.01971252 | AB28: 1.331026823e-08
A29: 0.06 | B29: 0.003591366219 | C29: 0.002996800787 | D29: 0.1196201929 | E29: 0.1196201929 | F29: 1.973630069 | G29: -0.0005945654321 | H29: 0.06 | I29: 0.065 | J29: 0.065 | K29: 0.07 | L29: 0.003591382845 | M29: 0.004188507611 | N29: 0.004237788905 | O29: 0.004883950866 | P29: 0.001194249533 | Q29: 0.00129281212 | R29: 0.001292568021 | S29: 0.001390866797 | T29: 0.1194249533 | U29: 0.129281212 | V29: 0.1292568021 | W29: 0.1390866797 | X29: 0.0197125174 | Y29: 0.01966369757 | Z29: 0.01966172632 | AA29: 0.01960896189 | AB29: 1.662596689e-08
A30: 0.07 | B30: 0.004884009013 | C30: 0.004193002715 | D30: 0.1393564936 | E30: 0.1393564936 | F30: 1.963659982 | G30: -0.0006910062971 | H30: 0.07 | I30: 0.075 | J30: 0.075 | K30: 0.08 | L30: 0.004884028947 | M30: 0.005579463986 | N30: 0.005628486383 | O30: 0.00637266024 | P30: 0.001390870078 | Q30: 0.001488914872 | R30: 0.001488631293 | S30: 0.001586372899 | T30: 0.1390870078 | U30: 0.1488914872 | V30: 0.1488631293 | W30: 0.1586372899 | X30: 0.01960895877 | Y30: 0.019552243 | Z30: 0.0195502821 | AA30: 0.01948963926 | AB30: 1.993425601e-08
A31: 0.08 | B31: 0.006372728265 | C31: 0.005586567651 | D31: 0.1589930934 | E31: 0.1589930934 | F31: 1.952108296 | G31: -0.0007861606134 | H31: 0.08 | I31: 0.085 | J31: 0.085 | K31: 0.09 | L31: 0.006372751498 | M31: 0.007165939578 | N31: 0.007214663667 | O31: 0.008056252946 | P31: 0.001586376159 | Q31: 0.001683824337 | R31: 0.001683501448 | S31: 0.001780607247 | T31: 0.1586376159 | U31: 0.1683824337 | V31: 0.1683501448 | W31: 0.1780607247 | X31: 0.01948963561 | Y31: 0.01942505776 | Z31: 0.01942310879 | AA31: 0.01935462374 | AB31: 2.323381532e-08
A32: 0.09 | B32: 0.008056330804 | C32: 0.007176498585 | D32: 0.1785141764 | E32: 0.1785141764 | F32: 1.938981391 | G32: -0.0008798322191 | H32: 0.09 | I32: 0.095 | J32: 0.095 | K32: 0.1 | L32: 0.008056357327 | M32: 0.008946662567 | N32: 0.008995049116 | O32: 0.009933378898 | P32: 0.00178061048 | Q32: 0.001877383577 | R32: 0.001877021571 | S32: 0.001973413307 | T32: 0.178061048 | U32: 0.1877383577 | V32: 0.1877021571 | W32: 0.1973413307 | X32: 0.01935461956 | Y32: 0.0192822182 | Z32: 0.01928028274 | AA32: 0.0192039964 | AB32: 2.652332853e-08
A33: 0.1 | B33: 0.00993346654 | C33: 0.008961640349 | D33: 0.1979039903 | E33: 0.1979039903 | F33: 1.924286594 | G33: -0.0009718261911 | H33: 0.1 | I33: 0.105 | J33: 0.105 | K33: 0.11 | L33: 0.009933496341 | M33: 0.0109202046 | N33: 0.01096821458 | O33: 0.0120025319 | P33: 0.001973416509 | Q33: 0.002069436468 | R33: 0.00206903556 | S33: 0.002164635406 | T33: 0.1973416509 | U33: 0.2069436468 | V33: 0.206903556 | W33: 0.2164635406 | X33: 0.0192039917 | Y33: 0.01912381011 | Z33: 0.01912188971 | AA33: 0.01903784771 | AB33: 2.980148391e-08
A34: 0.11 | B34: 0.01200262927 | C34: 0.01094068025 | D34: 0.2171468562 | E34: 0.2171468562 | F34: 1.908032178 | G34: -0.001061949018 | H34: 0.11 | I34: 0.115 | J34: 0.115 | K34: 0.12 | L34: 0.01200266234 | M34: 0.01308498162 | N34: 0.01313257623 | O34: 0.01426205055 | P34: 0.002164638574 | Q34: 0.002259827787 | R34: 0.002259388218 | S34: 0.002354118823 | T34: 0.2164638574 | U34: 0.2259827787 | V34: 0.2259388218 | W34: 0.2354118823 | X34: 0.01903784249 | Y34: 0.01894992864 | Z34: 0.01894802485 | AA34: 0.01885627747 | AB34: 3.306697477e-08
A35: 0.12 | B35: 0.01426215759 | C35: 0.01311214881 | D35: 0.236227178 | E35: 0.236227178 | F35: 1.890227354 | G35: -0.001150008772 | H35: 0.12 | I35: 0.125 | J35: 0.125 | K35: 0.13 | L35: 0.0142621939 | M35: 0.01543925488 | N35: 0.01548639556 | O35: 0.01671011925 | P35: 0.002354121953 | Q35: 0.002448403311 | R35: 0.002447925344 | S35: 0.002541709879 | T35: 0.2354121953 | U35: 0.2448403311 | V35: 0.2447925344 | W35: 0.2541709879 | X35: 0.01885627174 | Y35: 0.01876067824 | Z35: 0.01875879261 | AA35: 0.01865939479 | AB35: 3.631849999e-08
A36: 0.13 | B36: 0.01671023587 | C36: 0.01547442059 | D36: 0.2551294515 | E36: 0.2551294515 | F36: 1.870882274 | G36: -0.00123581528 | H36: 0.13 | I36: 0.135 | J36: 0.135 | K36: 0.14 | L36: 0.01671027543 | M36: 0.01798113191 | N36: 0.01802778038 | O36: 0.01934476926 | P36: 0.002541712966 | Q36: 0.002635009909 | R36: 0.00263449383 | S36: 0.002727256033 | T36: 0.2541712966 | U36: 0.2635009909 | V36: 0.263449383 | W36: 0.2727256033 | X36: 0.01865938855 | Y36: 0.01855617265 | Z36: 0.01855430671 | AA36: 0.018447318 | AB36: 3.955476455e-08
A37: 0.14 | B37: 0.0193448954 | C37: 0.01802571511 | D37: 0.2738382743 | E37: 0.2738382743 | F37: 1.850008016 | G37: -0.001319180291 | H37: 0.14 | I37: 0.145 | J37: 0.145 | K37: 0.15 | L37: 0.01934493817 | M37: 0.02070856771 | N37: 0.02075468599 | O37: 0.02216387992 | P37: 0.002727259075 | Q37: 0.002819495631 | R37: 0.002818941749 | S37: 0.002910605976 | T37: 0.2727259075 | U37: 0.2819495631 | V37: 0.2818941749 | W37: 0.2910605976 | X37: 0.01844731124 | Y37: 0.0183365348 | Z37: 0.01833469007 | AA37: 0.01822017459 | AB37: 4.277448002e-08
A38: 0.15 | B38: 0.0221640155 | C38: 0.02076409785 | D38: 0.2923383544 | E38: 0.2923383544 | F38: 1.827616587 | G38: -0.001399917648 | H38: 0.15 | I38: 0.155 | J38: 0.155 | K38: 0.16 | L38: 0.02216406148 | M38: 0.02361936596 | N38: 0.02366491638 | O38: 0.02516517993 | P38: 0.002910608968 | Q38: 0.003001709804 | R38: 0.003001118452 | S38: 0.003091609715 | T38: 0.2910608968 | U38: 0.3001709804 | V38: 0.3001118452 | W38: 0.3091609715 | X38: 0.01822016732 | Y38: 0.01810189676 | Z38: 0.01810007474 | AA38: 0.01797810116 | AB38: 4.59763651e-08
A39: 0.16 | B39: 0.02516532485 | C39: 0.0236874814 | D39: 0.3106145203 | E39: 0.3106145203 | F39: 1.803720911 | G39: -0.001477843454 | H39: 0.16 | I39: 0.165 | J39: 0.165 | K39: 0.17 | L39: 0.02516537401 | M39: 0.02671118034 | N39: 0.02675612557 | O39: 0.02834624866 | P39: 0.003091612654 | Q39: 0.003181503121 | R39: 0.003180874652 | S39: 0.003270118672 | T39: 0.3091612654 | U39: 0.3181503121 | V39: 0.3180874652 | W39: 0.3270118672 | X39: 0.0179780934 | Y39: 0.01785239966 | Z39: 0.01785060185 | AA39: 0.01772124336 | AB39: 4.915914611e-08
A40: 0.17 | B40: 0.02834640283 | C40: 0.0267936266 | D40: 0.3286517294 | E40: 0.3286517294 | F40: 1.778334825 | G40: -0.001552776234 | H40: 0.17 | I40: 0.175 | J40: 0.175 | K40: 0.18 | L40: 0.02834645515 | M40: 0.02998151593 | N40: 0.03002581902 | O40: 0.03170451767 | P40: 0.003270121553 | Q40: 0.003358727729 | R40: 0.003358062521 | S40: 0.003445985768 | T40: 0.3270121553 | U40: 0.3358727729 | V40: 0.3358062521 | W40: 0.3445985768 | X40: 0.0177212351 | Y40: 0.01758819362 | Z40: 0.0175864215 | AA40: 0.01744975577 | AB40: 5.232155753e-08
A41: 0.18 | B41: 0.03170468099 | C41: 0.03008014389 | D41: 0.3464350776 | E41: 0.3464350776 | F41: 1.751473072 | G41: -0.001624537102 | H41: 0.18 | I41: 0.185 | J41: 0.185 | K41: 0.19 | L41: 0.03170473646 | M41: 0.03342773075 | N41: 0.03347135512 | O41: 0.03523727223 | P41: 0.003445988588 | Q41: 0.003533237323 | R41: 0.003532535777 | S41: 0.003619065515 | T41: 0.3445988588 | U41: 0.3533237323 | V41: 0.3532535777 | W41: 0.3619065515 | X41: 0.01744974702 | Y41: 0.01730943768 | Z41: 0.01730769271 | AA41: 0.01716380182 | AB41: 5.546234242e-08
A42: 0.19 | B42: 0.03523744459 | C42: 0.03354449467 | D42: 0.3639498084 | E42: 0.3639498084 | F42: 1.723151292 | G42: -0.001692949925 | H42: 0.19 | I42: 0.195 | J42: 0.195 | K42: 0.2 | L42: 0.03523750317 | M42: 0.03704703731 | N42: 0.03708994679 | O42: 0.03894165294 | P42: 0.003619068271 | Q42: 0.003704887234 | R42: 0.00370414977 | S42: 0.003789214104 | T42: 0.3619068271 | U42: 0.3704887234 | V42: 0.370414977 | W42: 0.3789214104 | X42: 0.01716379258 | Y42: 0.0170162997 | Z42: 0.01701458333 | AA42: 0.01686355376 | AB42: 5.858025301e-08
A43: 0.2 | B43: 0.03894183423 | C43: 0.03718399275 | D43: 0.3811813213 | E43: 0.3811813213 | F43: 1.693386017 | G43: -0.001757841478 | H43: 0.2 | I43: =$H43+$B$13/2 -> 0.205 | J43: 0.205 | K43: 0.21 | L43: 0.0389418959 | M43: 0.0408365043 | N43: 0.04087866316 | O43: 0.04281465748 | P43: 0.003789216792 | Q43: 0.003873534512 | R43: 0.003872761573 | S43: 0.003956289491 | T43: 0.3789216792 | U43: 0.3873534512 | V43: 0.3872761573 | W43: 0.3956289491 | X43: 0.01686354404 | Y43: 0.01670895628 | Z43: 0.01670726993 | AA43: 0.01654919251 | AB43: 6.167405115e-08
A44: 0.21 | B44: 0.04281484757 | C44: 0.04099580597 | D44: 0.3981151815 | E44: 0.3981151815 | F44: 1.662194657 | G44: -0.001819041606 | H44: 0.21 | I44: 0.215 | J44: 0.215 | K44: 0.22 | L44: 0.04281491231 | M44: 0.04479305837 | N44: 0.04483443132 | O44: 0.04685314238 | P44: 0.003956292107 | Q44: 0.004039038018 | R44: 0.00403823007 | S44: 0.004120151484 | T44: 0.3956292107 | U44: 0.4039038018 | V44: 0.403823007 | W44: 0.4120151484 | X44: 0.01654918231 | Y44: 0.01638759266 | Z44: 0.01638593774 | AA44: 0.01622090757 | AB44: 6.474250881e-08
A45: 0.22 | B45: 0.04685334116 | C45: 0.04497695778 | D45: 0.414737128 | E45: 0.414737128 | F45: 1.629595495 | G45: -0.001876383377 | H45: 0.22 | I45: 0.225 | J45: 0.225 | K45: 0.23 | L45: 0.04685340894 | M45: 0.04891348595 | N45: 0.0489540382 | O45: 0.05105382498 | P45: 0.004120154025 | Q45: 0.004201258509 | R45: 0.004200416038 | S45: 0.00428066183 | T45: 0.4120154025 | U45: 0.4201258509 | V45: 0.4200416038 | W45: 0.428066183 | X45: 0.01622089691 | Y45: 0.01605240261 | Z45: 0.01605078052 | AA45: 0.01587889695 | AB45: 6.778440855e-08
A46: 0.23 | B46: 0.0510540323 | C46: 0.04912432906 | D46: 0.431033083 | E46: 0.431033083 | F46: 1.595607679 | G46: -0.001929703241 | H46: 0.23 | I46: 0.235 | J46: 0.235 | K46: 0.24 | L46: 0.0510541031 | M46: 0.05319443525 | N46: 0.05323413246 | O46: 0.05541328533 | P46: 0.004280664291 | Q46: 0.004360058721 | R46: 0.004359182233 | S46: 0.004437684296 | T46: 0.4280664291 | U46: 0.4360058721 | V46: 0.4359182233 | W46: 0.4437684296 | X46: 0.01587888583 | Y46: 0.01570358835 | Z46: 0.01570200047 | AA46: 0.01552336704 | AB46: 7.079854403e-08
A47: 0.24 | B47: 0.05541350106 | C47: 0.05343465989 | D47: 0.4469891598 | E47: 0.4469891598 | F47: 1.560251206 | G47: -0.001978841175 | H47: 0.24 | I47: 0.245 | J47: 0.245 | K47: 0.25 | L47: 0.05541357485 | M47: 0.05763241819 | N47: 0.05767122658 | O47: 0.05992796833 | P47: 0.004437686676 | Q47: 0.004515303453 | R47: 0.004514393478 | S47: 0.004591084757 | T47: 0.4437686676 | U47: 0.4515303453 | V47: 0.4514393478 | W47: 0.4591084757 | X47: 0.01552335546 | Y47: 0.01534136044 | Z47: 0.01533980811 | AA47: 0.0151545325 | AB47: 7.378372045e-08
A48: 0.25 | B48: 0.05992819233 | C48: 0.05790455149 | D48: 0.4625916718 | E48: 0.4625916718 | F48: 1.523546918 | G48: -0.002023640838 | H48: 0.25 | I48: 0.255 | J48: 0.255 | K48: 0.26 | L48: 0.05992826906 | M48: 0.06222381259 | N48: 0.06226169889 | O48: 0.0645941858 | P48: 0.004591087051 | Q48: 0.004666859653 | R48: 0.004665916739 | S48: 0.004740731273 | T48: 0.4591087051 | U48: 0.4666859653 | V48: 0.4665916739 | W48: 0.4740731273 | X48: 0.01515452048 | Y48: 0.01496593765 | Z48: 0.0149644222 | AA48: 0.01477261616 | AB48: 7.673875506e-08
A49: 0.26 | B49: 0.06459441792 | C49: 0.06253046821 | D49: 0.477827141 | E49: 0.477827141 | F49: 1.485516487 | G49: -0.002063949713 | H49: 0.26 | I49: 0.265 | J49: 0.265 | K49: 0.27 | L49: 0.06459449758 | M49: 0.06696486432 | N49: 0.06700179583 | O49: 0.06940811879 | P49: 0.004740733478 | Q49: 0.004814596496 | R49: 0.004813621212 | S49: 0.004886494174 | T49: 0.4740733478 | U49: 0.4814596496 | V49: 0.4813621212 | W49: 0.4886494174 | X49: 0.01477260369 | Y49: 0.01457754684 | Z49: 0.01457606958 | AA49: 0.01437784888 | AB49: 7.96624776e-08
A50: 0.27 | B50: 0.06940835887 | C50: 0.06730873962 | D50: 0.4926823059 | E50: 0.4926823059 | F50: 1.446182404 | G50: -0.002099619257 | H50: 0.27 | I50: 0.275 | J50: 0.275 | K50: 0.28 | L50: 0.06940844143 | M50: 0.07185168957 | N50: 0.07188763416 | O50: 0.07436581983 | P50: 0.004886496287 | Q50: 0.004958385467 | R50: 0.004957378401 | S50: 0.005028246138 | T50: 0.4886496287 | U50: 0.4958385467 | V50: 0.4957378401 | W50: 0.5028246138 | X50: 0.01437783597 | Y50: 0.01417642286 | Z50: 0.01417498507 | AA50: 0.01397046943 | AB50: 8.255373075e-08
A51: 0.28 | B51: 0.07436606771 | C51: 0.07223556268 | D51: 0.5071441299 | E51: 0.5071441299 | F51: 1.405567971 | G51: -0.002130505034 | H51: 0.28 | I51: 0.285 | J51: 0.285 | K51: 0.29 | L51: 0.07436615312 | M51: 0.0768802772 | N51: 0.07691520334 | O51: 0.07946321532 | P51: 0.005028248156 | Q51: 0.005098100436 | R51: 0.005097062198 | S51: 0.005165862269 | T51: 0.5028248156 | U51: 0.5098100436 | V51: 0.5097062198 | W51: 0.5165862269 | X51: 0.0139704561 | Y51: 0.01376280842 | Z51: 0.01376141137 | AA51: 0.01355072439 | AB51: 8.541137066e-08
A52: 0.29 | B52: 0.07946347083 | C52: 0.07730700397 | D52: 0.5211998096 | E52: 0.5211998096 | F52: 1.363697284 | G52: -0.002156466861 | H52: 0.29 | I52: 0.295 | J52: 0.295 | K52: 0.3 | L52: 0.07946355907 | M52: 0.08204649116 | N52: 0.08208036794 | O52: 0.08469610803 | P52: 0.005165864189 | Q52: 0.005233617742 | R52: 0.005232548959 | S52: 0.005299220178 | T52: 0.5165864189 | U52: 0.5233617742 | V52: 0.5232548959 | W52: 0.5299220178 | X52: 0.01355071064 | Y52: 0.01333695394 | Z52: 0.01333559886 | AA52: 0.01311886798 | AB52: 8.82342673e-08
A53: 0.3 | B53: 0.08469637101 | C53: 0.08251900207 | D53: 0.5348367825 | E53: 0.5348367825 | F53: 1.320595222 | G53: -0.002177368939 | H53: 0.3 | I53: 0.305 | J53: 0.305 | K53: 0.31 | L53: 0.08469646203 | M53: 0.08734607303 | N53: 0.08737887016 | O53: 0.09006017961 | P53: 0.005299221996 | Q53: 0.005364816265 | R53: 0.005363717583 | S53: 0.005428200052 | T53: 0.5299221996 | U53: 0.5364816265 | V53: 0.5363717583 | W53: 0.5428200052 | X53: 0.01311885382 | Y53: 0.01289911744 | Z53: 0.01289780555 | AA53: 0.01267516195 | AB53: 9.102130495e-08
A54: 0.31 | B54: 0.09006044988 | C54: 0.0878673699 | D54: 0.5480427347 | E54: 0.5480427347 | F54: 1.276287434 | G54: -0.002193079988 | H54: 0.31 | I54: 0.315 | J54: 0.315 | K54: 0.32 | L54: 0.09006054365 | M54: 0.09277464454 | N54: 0.09280633241 | O54: 0.09555099324 | P54: 0.005428201766 | Q54: 0.005491577503 | R54: 0.005490449588 | S54: 0.005552684734 | T54: 0.5428201766 | U54: 0.5491577503 | V54: 0.5490449588 | W54: 0.5552684734 | X54: 0.01267514739 | Y54: 0.01244956438 | Z54: 0.01244829687 | AA54: 0.01221987543 | AB54: 9.377138269e-08
A55: 0.32 | B55: 0.09555127062 | C55: 0.09334779724 | D55: 0.560805609 | E55: 0.560805609 | F55: 1.230800327 | G55: -0.002203473376 | H55: 0.32 | I55: 0.325 | J55: 0.325 | K55: =$H55+$B$13 -> 0.33 | L55: 0.0955513671 | M55: 0.09832771027 | N55: 0.09835825992 | O55: 0.1011639963 | P55: 0.005552686341 | Q55: 0.005613785644 | R55: 0.005612629179 | S55: 0.005672559797 | T55: 0.5552686341 | U55: 0.5613785644 | V55: 0.5612629179 | W55: 0.5672559797 | X55: 0.01221986047 | Y55: 0.01198856756 | Z55: 0.01198734557 | AA55: 0.01175328478 | AB55: 9.648341474e-08
A56: 0.33 | B56: 0.1011642806 | C56: 0.09895585333 | D56: 0.5731136123 | E56: 0.5731136123 | F56: 1.18416105 | G56: -0.002208427243 | H56: 0.33 | I56: 0.335 | J56: 0.335 | K56: 0.34 | L56: 0.1011643797 | M56: 0.1040006604 | N56: 0.1040300436 | O56: 0.1068945231 | P56: 0.005672561294 | Q56: 0.005731327641 | R56: 0.005730143328 | S56: 0.005787713609 | T56: 0.5672561294 | U56: 0.5731327641 | V56: 0.5730143328 | W56: 0.5787713609 | X56: 0.01175326944 | Y56: 0.0115164069 | Z56: 0.01151523158 | AA56: 0.01127567345 | AB56: 9.915633092e-08
A57: 0.34 | B57: 0.1068948141 | C57: 0.1046869895 | D57: 0.5849552228 | E57: 0.5849552228 | F57: 1.13639748 | G57: -0.002207824628 | H57: 0.34 | I57: 0.345 | J57: 0.345 | K57: 0.35 | L57: 0.1068949159 | M57: 0.1097887734 | N57: 0.1098169625 | O57: 0.1127377977 | P57: 0.005787714993 | Q57: 0.005844093282 | R57: 0.00584288184 | S57: 0.005898037411 | T57: 0.5787714993 | U57: 0.5844093282 | V57: 0.584288184 | W57: 0.5898037411 | X57: 0.01127565774 | Y57: 0.01103336937 | Z57: 0.0110322418 | AA57: 0.01078733184 | AB57: 1.017890771e-07
A58: 0.35 | B58: 0.1127380953 | C58: 0.1105365417 | D58: 0.5963191976 | E58: 0.5963191976 | F58: 1.087538208 | G58: -0.002201553583 | H58: 0.35 | I58: 0.355 | J58: 0.355 | K58: 0.36 | L58: 0.1127381996 | M58: 0.115687219 | N58: 0.1157141873 | O58: 0.1186889371 | P58: 0.00589803868 | Q58: 0.005951975259 | R58: 0.005950737424 | S58: 0.00600342538 | T58: 0.589803868 | U58: 0.5951975259 | V58: 0.5950737424 | W58: 0.600342538 | X58: 0.01078731576 | Y58: 0.01053974876 | Z58: 0.01053867003 | AA58: 0.0102885571 | AB58: 1.043806156e-07
A59: 0.36 | B59: 0.118689241 | C59: 0.1164997337 | D59: 0.6071945797 | E59: 0.6071945797 | F59: 1.037612524 | G59: -0.002189507296 | H59: 0.36 | I59: 0.365 | J59: 0.365 | K59: 0.37 | L59: 0.1186893479 | M59: 0.1216910612 | N59: 0.1217167825 | O59: 0.1247429536 | P59: 0.006003426531 | Q59: 0.006054869234 | R59: 0.006053605759 | S59: 0.006103774698 | T59: 0.6003426531 | U59: 0.6054869234 | V59: 0.6053605759 | W59: 0.6103774698 | X59: 0.01028854067 | Y59: 0.0100358456 | Z59: 0.01003481675 | AA59: 0.009779653029 | AB59: 1.069299256e-07
A60: 0.37 | B60: 0.1247432637 | C60: 0.1225716795 | D60: 0.6175707049 | E60: 0.6175707049 | F60: 0.9866503996 | G60: -0.002171584196 | H60: 0.37 | I60: 0.375 | J60: 0.375 | K60: 0.38 | L60: 0.1247433731 | M60: 0.127795261 | N60: 0.12781971 | O60: 0.1308947586 | P60: 0.006103775728 | Q60: 0.006152673909 | R60: 0.006151385563 | S60: 0.006198985618 | T60: 0.6103775728 | U60: 0.6152673909 | V60: 0.6151385563 | W60: 0.6198985618 | X60: 0.009779636251 | Y60: 0.009521966939 | Z60: 0.009520988976 | AA60: 0.009260929869 | AB60: 1.094360035e-07
A61: 0.38 | B61: 0.1308950746 | C61: 0.1287473865 | D61: 0.6274372089 | E61: 0.6274372089 | F61: 0.9346824755 | G61: -0.002147688066 | H61: 0.38 | I61: 0.385 | J61: 0.385 | K61: 0.39 | L61: 0.1308951865 | M61: 0.1339946797 | N61: 0.134017832 | O61: 0.1371391651 | P61: 0.006198986525 | Q61: 0.006245291088 | R61: 0.006243978656 | S61: 0.006288961526 | T61: 0.6198986525 | U61: 0.6245291088 | V61: 0.6243978656 | W61: 0.6288961526 | X61: 0.009260912756 | Y61: 0.008998426203 | Z61: 0.008997500112 | AA61: 0.008732704155 | AB61: 1.118978633e-07
A62: 0.39 | B62: 0.1371394867 | C62: 0.1350217586 | D62: 0.6367840337 | E62: 0.6367840337 | F62: 0.8817400417 | G62: -0.00211772815 | H62: 0.39 | I62: 0.395 | J62: 0.395 | K62: 0.4 | L62: 0.1371396011 | M62: 0.1402840822 | N62: 0.1403059139 | O62: 0.1434708911 | P62: 0.006288962307 | Q62: 0.006332625741 | R62: 0.006331290022 | S62: 0.006373609005 | T62: 0.6288962307 | U62: 0.6332625741 | V62: 0.6331290022 | W62: 0.6373609005 | X62: 0.008732686718 | Y62: 0.008465543025 | Z62: 0.008464669756 | AA62: 0.008195298544 | AB62: 1.14314537e-07
A63: 0.4 | B63: 0.1434712182 | C63: 0.1413895989 | D63: 0.6456014341 | E63: 0.6456014341 | F63: 0.827855023 | G63: -0.00208161925 | H63: 0.4 | I63: =$H63+$B$13/2 -> 0.405 | J63: 0.405 | K63: 0.41 | L63: 0.1434713349 | M63: 0.1466581397 | N63: 0.1466786279 | O63: 0.1498845627 | P63: 0.006373609659 | Q63: 0.006414586063 | R63: 0.006413227874 | S63: 0.006452837894 | T63: 0.6373609659 | U63: 0.6414586063 | V63: 0.6413227874 | W63: 0.6452837894 | X63: 0.008195280792 | Y63: 0.007923643071 | Z63: 0.007922823543 | AA63: 0.007649041636 | AB63: 1.166850752e-07
A64: 0.41 | B64: 0.1498848951 | C64: 0.1478456133 | D64: 0.6538799843 | E64: 0.6538799843 | F64: 0.7730599615 | G64: -0.002039281823 | H64: 0.41 | I64: 0.415 | J64: 0.415 | K64: 0.42 | L64: 0.1498850141 | M64: 0.1531114333 | N64: 0.1531305559 | O64: 0.1563747178 | P64: 0.006452838418 | Q64: 0.006491083536 | R64: 0.006489703707 | S64: 0.006526561348 | T64: 0.6452838418 | U64: 0.6491083536 | V64: 0.6489703707 | W64: 0.6526561348 | X64: 0.007649023582 | Y64: 0.007373057869 | Z64: 0.007372292967 | AA64: 0.007094267804 | AB64: 1.190085471e-07
A65: 0.42 | B65: 0.1563750552 | C65: 0.1543844131 | D65: 0.6616105839 | E65: 0.6616105839 | F65: 0.7173879992 | G65: -0.00199064208 | H65: 0.42 | I65: 0.425 | J65: 0.425 | K65: 0.43 | L65: 0.1563751765 | M65: 0.1596384573 | N65: 0.159656193 | O65: 0.1629358088 | P65: 0.00652656174 | Q65: 0.006562032987 | R65: 0.006560632363 | S65: 0.006594695892 | T65: 0.652656174 | U65: 0.6562032987 | V65: 0.6560632363 | W65: 0.6594695892 | X65: 0.007094249458 | Y65: 0.006814124624 | Z65: 0.006813415199 | AA65: 0.00653131701 | AB65: 1.212840411e-07
A66: 0.43 | B66: 0.162936151 | C66: 0.161000519 | D66: 0.6687844639 | E66: 0.6687844639 | F66: 0.6608728605 | G66: -0.00193563207 | H66: 0.43 | I66: 0.435 | J66: 0.435 | K66: 0.44 | L66: 0.1629362745 | M66: 0.1662336226 | N66: 0.1662499509 | O66: 0.1695622066 | P66: 0.00659469615 | Q66: 0.006627352642 | R66: 0.00662593208 | S66: 0.006657161479 | T66: 0.659469615 | U66: 0.6627352642 | V66: 0.662593208 | W66: 0.6657161479 | X66: 0.006531298382 | Y66: 0.00624718604 | Z66: 0.006246532911 | AA66: 0.005960534619 | AB66: 1.23510665e-07
A67: 0.44 | B67: 0.1695625534 | C67: 0.1676883636 | D67: 0.6753931925 | E67: 0.6753931925 | F67: 0.603548834 | G67: -0.001874189766 | H67: 0.44 | I67: 0.445 | J67: 0.445 | K67: 0.45 | L67: 0.169562679 | M67: 0.1728912598 | N67: 0.1729061611 | O67: 0.1762482036 | P67: 0.006657161601 | Q67: 0.00668696418 | R67: 0.006685524552 | S67: 0.006713881542 | T67: 0.6657161601 | U67: 0.668696418 | V67: 0.6685524552 | W67: 0.6713881542 | X67: 0.005960515722 | Y67: 0.005672590138 | Z67: 0.005671994086 | AA67: 0.005382271222 | AB67: 1.256875466e-07
A68: 0.45 | B68: 0.1762485547 | C68: 0.1744422955 | D68: 0.6814286808 | E68: 0.6814286808 | F68: 0.5454507545 | G68: -0.001806259149 | H68: 0.45 | I68: 0.455 | J68: 0.455 | K68: 0.46 | L68: 0.1762486825 | M68: 0.1796056232 | N68: 0.1796190789 | O68: 0.1829880175 | P68: 0.006713881527 | Q68: 0.006740792787 | R68: 0.006739334977 | S68: 0.006764783045 | T68: 0.6713881527 | U68: 0.6740792787 | V68: 0.6739334977 | W68: 0.6764783045 | X68: 0.005382252066 | Y68: 0.00509069006 | Z68: 0.005090151835 | AA68: 0.004796882435 | AB68: 1.278138337e-07
A69: 0.46 | B69: 0.1829883726 | C69: 0.1812565823 | D69: 0.6868831884 | E69: 0.6868831884 | F69: 0.486613984 | G69: -0.001731790283 | H69: 0.46 | I69: 0.465 | J69: 0.465 | K69: 0.47 | L69: 0.1829885025 | M69: 0.1863708939 | N69: 0.1863828861 | O69: 0.1897757946 | P69: 0.006764782891 | Q69: 0.006788767206 | R69: 0.00678729211 | S69: 0.006809796533 | T69: 0.6764782891 | U69: 0.6788767206 | V69: 0.678729211 | W69: 0.6809796533 | X69: 0.004796863033 | Y69: 0.004501843888 | Z69: 0.004501364202 | AA69: 0.004204728716 | AB69: 1.298886946e-07
A70: 0.47 | B70: 0.1897761536 | C70: 0.1881254142 | D70: 0.6917493282 | E70: 0.6917493282 | F70: 0.4270743932 | G70: -0.001650739386 | H70: 0.47 | I70: 0.475 | J70: 0.475 | K70: 0.48 | L70: 0.1897762855 | M70: 0.1931811836 | N70: 0.1931916954 | O70: 0.1966056138 | P70: 0.006809796237 | Q70: 0.006830819783 | R70: 0.00682932831 | S70: 0.006848856177 | T70: 0.6809796237 | U70: 0.6830819783 | V70: 0.682932831 | W70: 0.6848856177 | X70: 0.00420470908 | Y70: 0.003906414444 | Z70: 0.003905993973 | AA70: 0.003606175169 | AB70: 1.319113187e-07
A71: 0.48 | B71: 0.1966059764 | C71: 0.1950429075 | D71: 0.6960200722 | E71: 0.6960200722 | F71: 0.3668683422 | G71: -0.001563068901 | H71: 0.48 | I71: 0.485 | J71: 0.485 | K71: 0.49 | L71: 0.1966061103 | M71: 0.2000305381 | N71: 0.2000395535 | O71: 0.2034714899 | P71: 0.006848855739 | Q71: 0.006866886516 | R71: 0.006865379585 | S71: 0.006881899824 | T71: 0.6848855739 | U71: 0.6866886516 | V71: 0.6865379585 | W71: 0.6881899824 | X71: 0.003606155311 | Y71: 0.003304769097 | Z71: 0.003304408482 | AA71: 0.003001591341 | AB71: 1.338809162e-07
A72: 0.49 | B72: 0.2034718558 | C72: 0.2020031082 | D72: 0.6996887556 | E72: 0.6996887556 | F72: 0.3060326607 | G72: -0.001468747557 | H72: 0.49 | I72: 0.495 | J72: 0.495 | K72: 0.5 | L72: 0.2034719916 | M72: 0.2069129412 | N72: 0.2069204451 | O72: 0.2103673772 | P72: 0.006881899242 | Q72: 0.006896907099 | R72: 0.00689538564 | S72: 0.006908869036 | T72: 0.6881899242 | U72: 0.6896907099 | V72: 0.689538564 | W72: 0.6908869036 | X72: 0.003001571273 | Y72: 0.002697279564 | Z72: 0.002696979407 | AA72: 0.002391351029 | AB72: 1.35796719e-07
A73: 0.5 | B73: 0.2103677462 | C73: 0.2089999958 | D73: 0.7027490822 | E73: 0.7027490822 | F73: 0.2446046287 | G73: -0.001367750433 | H73: 0.5 | I73: 0.505 | J73: 0.505 | K73: 0.51 | L73: 0.2103678839 | M73: 0.213822318 | N73: 0.2138282963 | O73: 0.2172871738 | P73: 0.006908868309 | Q73: 0.006920824963 | R73: 0.006919289918 | S73: 0.006929709135 | T73: 0.6908868309 | U73: 0.6920824963 | V73: 0.6919289918 | W73: 0.6929709135 | X73: 0.002391330763 | Y73: 0.002084321707 | Z73: 0.002084082574 | AA73: 0.001775832074 | AB73: 1.376579805e-07
A74: 0.51 | B74: 0.2172875456 | C74: 0.2160274866 | D74: 0.7051951285 | E74: 0.7051951285 | F74: 0.1826219561 | G74: -0.001260059006 | H74: 0.51 | I74: 0.515 | J74: 0.515 | K74: 0.52 | L74: 0.2172876851 | M74: 0.2207525392 | N74: 0.2207569787 | O74: 0.2242247247 | P74: 0.006929708262 | Q74: 0.00693858732 | R74: 0.006937039638 | S74: 0.006944369239 | T74: 0.6929708262 | U74: 0.693858732 | V74: 0.6937039638 | W74: 0.6944369239 | X74: 0.001775811623 | Y74: 0.001466275332 | Z74: 0.001466097751 | AA74: 0.001155416157 | AB74: 1.394639763e-07
A75: 0.52 | B75: 0.2242250991 | C75: 0.2230794379 | D75: 0.707021348 | E75: 0.707021348 | F75: 0.120122763 | G75: -0.001145661207 | H75: 0.52 | I75: 0.525 | J75: 0.525 | K75: 0.53 | L75: 0.2242252403 | M75: 0.2276974244 | N75: 0.2277003129 | O75: 0.2311738261 | P75: 0.006944368218 | Q75: 0.006950145196 | R75: 0.006948585838 | S75: 0.006952802303 | T75: 0.6944368218 | U75: 0.6950145196 | V75: 0.6948585838 | W75: 0.6952802303 | X75: 0.001155395533 | Y75: 0.0008435239816 | Z75: 0.000843408442 | AA75: 0.0005304885918 | AB75: 1.412140043e-07
A76: 0.53 | B76: 0.2311742028 | C76: 0.2301496514 | D76: 0.7082225757 | E76: 0.7082225757 | F76: 0.0571455583 | G76: -0.001024551465 | H76: 0.53 | I76: 0.535 | J76: 0.535 | K76: 0.54 | L76: 0.2311743457 | M76: 0.2346507463 | N76: 0.2346520725 | O76: 0.2381282291 | P76: 0.006952801133 | Q76: 0.006955453472 | R76: 0.006953883407 | S76: 0.00695496515 | T76: 0.6952801133 | U76: 0.6955453472 | V76: 0.6953883407 | W76: 0.695496515 | X76: 0.0005304678081 | Y76: 0.0002164547288 | Z76: 0.000216401682 | AA76: -9.856188195e-05 | AB76: 1.429073849e-07
A77: 0.54 | B77: 0.2381286079 | C77: 0.2372318771 | D77: 0.7087940313 | E77: 0.7087940313 | F77: -0.006270780105 | G77: -0.0008967307458 | H77: 0.54 | I77: 0.545 | J77: 0.545 | K77: 0.55 | L77: 0.2381287524 | M77: 0.2416062343 | N77: 0.2416059879 | O77: 0.2450816435 | P77: 0.006954963831 | Q77: 0.006954470917 | R77: 0.006952891121 | S77: 0.006950818509 | T77: 0.6954963831 | U77: 0.6954470917 | V77: 0.6952891121 | W77: 0.6950818509 | X77: -9.858281262e-05 | Y77: -0.0004145420352 | Z77: -0.0004145321769 | AA77: -0.0007313433124 | AB77: 1.445434614e-07
A78: 0.55 | B78: 0.245082024 | C78: 0.2443198174 | D78: 0.7087313235 | E78: 0.7087313235 | F78: -0.07008702685 | G78: -0.0007622065912 | H78: 0.55 | I78: 0.555 | J78: 0.555 | K78: 0.56 | L78: 0.2450821701 | M78: 0.2485575787 | N78: 0.2485557502 | O78: 0.2520277418 | P78: 0.00695081704 | Q78: 0.006947160218 | R78: 0.006945571676 | S78: 0.006940327043 | T78: 0.695081704 | U78: 0.6947160218 | V78: 0.6945571676 | W78: 0.6940327043 | X78: -0.000731364377 | Y78: -0.001049072812 | Z78: -0.001048999675 | AA78: -0.001367460747 | AB78: 1.461216002e-07
A79: 0.56 | B79: 0.2520281238 | C79: 0.2514071307 | D79: 0.7080304532 | E79: 0.7080304532 | F79: -0.1342636301 | G79: -0.0006209931492 | H79: 0.56 | I79: 0.565 | J79: 0.565 | K79: 0.57 | L79: 0.2520282715 | M79: 0.2554984342 | N79: 0.2554950155 | O79: 0.2589601632 | P79: 0.006940325423 | Q79: 0.006933488014 | R79: 0.006931891717 | S79: 0.006923459379 | T79: 0.6940325423 | U79: 0.6933488014 | V79: 0.6931891717 | W79: 0.6923459379 | X79: -0.001367481932 | Y79: -0.001686741208 | Z79: -0.00168660446 | AA79: -0.002006516448 | AB79: 1.476411908e-07
A80: 0.57 | B80: 0.2589605464 | C80: 0.2584874352 | D80: 0.7066878169 | E80: 0.7066878169 | F80: -0.1987607329 | G80: -0.0004731112009 | H80: 0.57 | I80: 0.575 | J80: 0.575 | K80: 0.58 | L80: 0.2589606955 | M80: 0.2624224243 | N80: 0.262417408 | O80: 0.2658725174 | P80: 0.006923457607 | Q80: 0.006913424918 | R80: 0.006911821866 | S80: 0.006900188132 | T80: 0.6923457607 | U80: 0.6913424918 | V80: 0.6911821866 | W80: 0.6900188132 | X80: -0.002006537741 | Y80: -0.002327148154 | Z80: -0.0023269475 | AA80: -0.002648110106 | AB80: 1.491016466e-07
A81: 0.58 | B81: 0.2658729015 | C81: 0.2655543134 | D81: 0.7047002096 | E81: 0.7047002096 | F81: -0.2635381946 | G81: -0.0003185881828 | H81: 0.58 | I81: 0.585 | J81: 0.585 | K81: 0.59 | L81: 0.265873052 | M81: 0.2693231452 | N81: 0.2693165248 | O81: 0.2727583888 | P81: 0.006900186209 | Q81: 0.006886945551 | R81: 0.006885336748 | S81: 0.006870489936 | T81: 0.6900186209 | U81: 0.6886945551 | V81: 0.6885336748 | W81: 0.6870489936 | X81: -0.002648131494 | Y81: -0.00296989212 | Z81: -0.002969627307 | AA81: -0.003291839064 | AB81: 1.505024046e-07
A82: 0.59 | B82: 0.2727587737 | C82: 0.2726013155 | D82: 0.7020648276 | E82: 0.7020648276 | F82: -0.3285556131 | G82: -0.0001574582038 | H82: 0.59 | I82: 0.595 | J82: 0.595 | K82: 0.6 | L82: 0.2727589255 | M82: 0.2761941694 | N82: 0.2761859398 | O82: 0.2796113405 | P82: 0.00687048786 | Q82: 0.006854028557 | R82: 0.006852415013 | S82: 0.006834345458 | T82: 0.687048786 | U82: 0.6854028557 | V82: 0.6852415013 | W82: 0.6834345458 | X82: -0.003291860533 | Y82: -0.003614569332 | Z82: -0.003614240146 | AA82: -0.003937298531 | AB82: 1.518429258e-07
A83: 0.6 | B83: 0.2796117258 | C83: 0.2796219637 | D83: 0.6987792715 | E83: 0.6987792715 | F83: -0.393772346 | G83: 1.023794246e-05 | H83: 0.6 | I83: =$H83+$B$13/2 -> 0.605 | J83: 0.605 | K83: 0.61 | L83: 0.2796118789 | M83: 0.2830290505 | N83: 0.2830192072 | O83: 0.2864249183 | P83: 0.00683434323 | Q83: 0.006814656629 | R83: 0.00681303936 | S83: 0.006791739427 | T83: 0.683434323 | U83: 0.6814656629 | V83: 0.681303936 | W83: 0.6791739427 | X83: -0.003937320067 | Y83: -0.004260773997 | Z83: -0.004260380265 | AA83: -0.004584081805 | AB83: 1.531226954e-07
A84: 0.61 | B84: 0.2864253037 | C84: 0.2866097564 | D84: 0.694841548 | E84: 0.694841548 | F84: -0.4591475332 | G84: 0.0001844527701 | H84: 0.61 | I84: 0.615 | J84: 0.615 | K84: 0.62 | L84: 0.286425458 | M84: 0.2898213265 | N84: 0.2898098663 | O84: 0.2931926546 | P84: 0.006791737046 | Q84: 0.006768816529 | R84: 0.006767196553 | S84: 0.006742660644 | T84: 0.6791737046 | U84: 0.6768816529 | V84: 0.6767196553 | W84: 0.6742660644 | X84: -0.004584103394 | Y84: -0.004908098519 | Z84: -0.004907640109 | AA84: -0.005231780494 | AB84: 1.543412231e-07
A85: 0.62 | B85: 0.2931930398 | C85: 0.2935581719 | D85: 0.6902500727 | E85: 0.6902500727 | F85: -0.5246401188 | G85: 0.0003651320982 | H85: 0.62 | I85: 0.625 | J85: 0.625 | K85: 0.63 | L85: 0.2931931953 | M85: 0.2965645244 | N85: 0.2965514449 | O85: 0.2999080728 | P85: 0.00674265811 | Q85: 0.0067164991 | R85: 0.006714877442 | S85: 0.006687102005 | T85: 0.674265811 | U85: 0.67164991 | V85: 0.6714877442 | W85: 0.6687102005 | X85: -0.005231802124 | Y85: -0.005556133727 | Z85: -0.005555610547 | AA85: -0.005879984743 | AB85: 1.55498043e-07
A86: 0.63 | B86: 0.2999084576 | C86: 0.3004606727 | D86: 0.6850036715 | E86: 0.6850036715 | F86: -0.5902088739 | G86: 0.0005522150535 | H86: 0.63 | I86: 0.635 | J86: 0.635 | K86: 0.64 | L86: 0.2999086142 | M86: 0.3032521639 | N86: 0.3032374638 | O86: 0.3065646912 | P86: 0.006687099318 | Q86: 0.006657699286 | R86: 0.006656076972 | S86: 0.006625060507 | T86: 0.6687099318 | U86: 0.6657699286 | V86: 0.6656076972 | W86: 0.6625060507 | X86: -0.0058800064 | Y86: -0.006204469096 | Z86: -0.006203881095 | AA86: -0.006528283454 | AB86: 1.56592714e-07
A87: 0.64 | B87: 0.3065650753 | C87: 0.3073107094 | D87: 0.6791015828 | E87: 0.6791015828 | F87: -0.6558124182 | G87: 0.0007456340769 | H87: 0.64 | I87: 0.645 | J87: 0.645 | K87: 0.65 | L87: 0.3065652329 | M87: 0.3098777618 | N87: 0.309861441 | O87: 0.3131560271 | P87: 0.006625057668 | Q87: 0.006592416142 | R87: 0.006590794203 | S87: 0.006556537266 | T87: 0.6625057668 | U87: 0.6592416142 | V87: 0.6590794203 | W87: 0.6556537266 | X87: -0.006528305124 | Y87: -0.006852692969 | Z87: -0.006852040138 | AA87: -0.007176264512 | AB87: 1.5762482e-07
A88: 0.65 | B88: 0.3131564103 | C88: 0.3141017252 | D88: 0.6725434586 | E88: =D88 -> 0.6725434586 | F88: -0.7214092435 | G88: =C88-B88 -> 0.0009453149365 | H88: 0.65 | I88: 0.655 | J88: 0.655 | K88: =$H88+$B$13 -> 0.66 | L88: 0.3131565689 | M88: 0.316434836 | N88: 0.3164168953 | O88: 0.3196756012 | P88: 0.006556534274 | Q88: 0.006520652844 | R88: 0.006519032311 | S88: 0.006481537523 | T88: 0.6556534274 | U88: 0.6520652844 | V88: 0.6519032311 | W88: 0.6481537523 | X88: -0.007176286182 | Y88: -0.007500392789 | Z88: -0.00749967516 | AA88: -0.007823515014 | AB88: =L88-B88 -> 1.585939698e-07
A89: =A88+$B$13 -> 0.66 | B89: =$B$14+0.5*A89*SIN($B$10*A89) -> 0.319675983 | C89: =C88+$B$13*E88 -> 0.3208271598 | D89: =D88+$B$13*F88 -> 0.6653293661 | E89: 0.6653293661 | F89: =-$B$11*C89+$B$12*COS($B$10*A89) -> -0.7869577358 | G89: 0.001151176744 | H89: =A89 -> 0.66 | I89: 0.665 | J89: 0.665 | K89: 0.67 | L89: =L88+(1/6)*(P88+2*Q88+2*R88+S88) -> 0.3196761425 | M89: =$L89+P89/2 -> 0.3229169097 | N89: =$L89+Q89/2 -> 0.3228973509 | O89: =$L89+R89 -> 0.3261169411 | P89: =$B$13*T89 -> 0.006481534379 | Q89: =$B$13*U89 -> 0.006442416696 | R89: =$B$13*V89 -> 0.006440798603 | S89: =$B$13*W89 -> 0.00640007065 | T89: =T88+(1/6)*(X88+2*Y88+2*Z88+AA88) -> 0.6481534379 | U89: =$T89+X89/2 -> 0.6442416696 | V89: =$T89+Y89/2 -> 0.6440798603 | W89: =$T89+Z89 -> 0.640007065 | X89: =$B$13*(-$B$11*L89+$B$12*COS($B$10*H89)) -> -0.007823536669 | Y89: =$B$13*(-$B$11*M89+$B$12*COS($B$10*I89)) -> -0.00814715532 | Z89: =$B$13*(-$B$11*N89+$B$12*COS($B$10*J89)) -> -0.008146372967 | AA89: =$B$13*(-$B$11*O89+$B$12*COS($B$10*K89)) -> -0.008469621489 | AB89: 1.594997977e-07
A90: 0.67 | B90: 0.3261173215 | C90: 0.3274804534 | D90: 0.6574597888 | E90: 0.6574597888 | F90: -0.8524161982 | G90: 0.001363131976 | H90: 0.67 | I90: 0.675 | J90: 0.675 | K90: 0.68 | L90: 0.3261174818 | M90: 0.3293175155 | N90: 0.3292963414 | O90: 0.3324735863 | P90: 0.006400067355 | Q90: 0.006357719139 | R90: 0.00635610452 | S90: 0.006312150156 | T90: 0.6400067355 | U90: 0.6357719139 | V90: 0.635610452 | W90: 0.6312150156 | X90: -0.008469643116 | Y90: -0.008792566878 | Z90: -0.008791719913 | AA90: -0.009114170135 | AB90: 1.603419631e-07
A91: 0.68 | B91: 0.3324739648 | C91: 0.3340550513 | D91: 0.6489356268 | E91: 0.6489356268 | F91: -0.9177428735 | G91: 0.001581086504 | H91: 0.68 | I91: 0.685 | J91: 0.685 | K91: 0.69 | L91: 0.3324741259 | M91: 0.3356301993 | N91: 0.3356074138 | O91: 0.3387390916 | P91: 0.00631214671 | Q91: 0.006266575751 | R91: 0.006264965642 | S91: 0.006217793689 | T91: 0.631214671 | U91: 0.6266575751 | V91: 0.6264965642 | W91: 0.6217793689 | X91: -0.00911419172 | Y91: -0.009436213552 | Z91: -0.009435302133 | AA91: -0.009756747038 | AB91: 1.611201508e-07
A92: 0.69 | B92: 0.338739468 | C92: 0.3405444076 | D92: 0.6397581981 | E92: 0.6397581981 | F92: -0.9828959678 | G92: 0.001804939622 | H92: 0.69 | I92: 0.695 | J92: 0.695 | K92: 0.7 | L92: 0.3387396298 | M92: 0.3418485249 | N92: 0.3418241329 | O92: 0.3449070315 | P92: 0.006217790093 | Q92: 0.00616900625 | R92: 0.006167401686 | S92: 0.006117023036 | T92: 0.6217790093 | U92: 0.616900625 | V92: 0.6167401686 | W92: 0.6117023036 | X92: -0.009756768567 | Y92: -0.01007768144 | Z92: -0.01007670576 | AA92: -0.0103969384 | AB92: 1.618340714e-07
A93: 0.7 | B93: 0.3449074055 | C93: 0.3469419896 | D93: 0.6299292384 | E93: 0.6299292384 | F93: -1.047833673 | G93: 0.002034584085 | H93: 0.7 | I93: 0.705 | J93: 0.705 | K93: 0.71 | L93: 0.344907568 | M93: 0.3479660776 | N93: 0.3479400852 | O93: 0.3509710045 | P93: 0.006117019291 | Q93: 0.006065034492 | R93: 0.006063436507 | S93: 0.006009864119 | T93: 0.6117019291 | U93: 0.6065034492 | V93: 0.6063436507 | W93: 0.6009864119 | X93: -0.01039695986 | Y93: -0.01071655687 | Z93: -0.01071551718 | AA93: -0.01103433078 | AB93: 1.624834611e-07
A94: 0.71 | B94: 0.3509713758 | C94: 0.353241282 | D94: 0.6194509017 | E94: 0.6194509017 | F94: -1.112514188 | G94: 0.002269906152 | H94: 0.71 | I94: 0.715 | J94: 0.715 | K94: 0.72 | L94: 0.3509715389 | M94: 0.353976469 | N94: 0.3539488831 | O94: 0.356924637 | P94: 0.006009860226 | Q94: 0.005954688466 | R94: 0.005953098093 | S94: 0.005896346994 | T94: 0.6009860226 | U94: 0.5954688466 | V94: 0.5953098093 | W94: 0.5896346994 | X94: -0.01103435216 | Y94: -0.01135242664 | Z94: -0.01135132321 | AA94: -0.0116685113 | AB94: 1.630680819e-07
A95: 0.72 | B95: 0.3569250053 | C95: 0.359435791 | D95: 0.6083257598 | E95: 0.6083257598 | F95: -1.176895746 | G95: 0.002510785632 | H95: 0.72 | I95: 0.725 | J95: 0.725 | K95: 0.73 | L95: 0.3569251689 | M95: 0.3598733404 | N95: 0.3598441691 | O95: 0.3627615875 | P95: 0.005896342954 | Q95: 0.005838000291 | R95: 0.005836418563 | S95: 0.005776505841 | T95: 0.5896342954 | U95: 0.5838000291 | V95: 0.5836418563 | W95: 0.5776505841 | X95: -0.01166853258 | Y95: -0.01198487823 | Z95: -0.01198371138 | AA95: -0.0122990679 | AB95: 1.635877216e-07
A96: 0.73 | B96: 0.3627619526 | C96: 0.3655190486 | D96: 0.5965568023 | E96: 0.5965568023 | F96: -1.240936635 | G96: 0.002757095934 | H96: 0.73 | I96: 0.735 | J96: 0.735 | K96: 0.74 | L96: 0.3627621167 | M96: 0.3656503675 | N96: 0.3656196198 | O96: 0.3684755508 | P96: 0.005776501655 | Q96: 0.00571500621 | R96: 0.005713434155 | S96: 0.005650378954 | T96: 0.5776501655 | U96: 0.571500621 | V96: 0.5713434155 | W96: 0.5650378954 | X96: -0.01229908907 | Y96: -0.01261350003 | Z96: -0.01261227012 | AA96: -0.01292558954 | AB96: 1.640421938e-07
A97: 0.74 | B97: 0.3684759125 | C97: 0.3714846166 | D97: 0.584147436 | E97: 0.584147436 | F97: -1.304595217 | G97: 0.003008704123 | H97: 0.74 | I97: 0.745 | J97: 0.745 | K97: 0.75 | L97: 0.3684760769 | M97: 0.3713012642 | N97: 0.3712689502 | O97: 0.3740602621 | P97: 0.005650374623 | Q97: 0.00558574657 | R97: 0.005584185215 | S97: 0.005518008733 | T97: 0.5650374623 | U97: 0.558574657 | V97: 0.5584185215 | W97: 0.5518008733 | X97: -0.01292561059 | Y97: -0.0132378816 | Z97: -0.01323658904 | AA97: -0.01354766645 | AB97: 1.644313384e-07
A98: 0.75 | B98: 0.37406062 | C98: 0.377326091 | D98: 0.5711014838 | E98: 0.5711014838 | F98: -1.367829961 | G98: 0.003265470986 | H98: 0.75 | I98: 0.755 | J98: 0.755 | K98: 0.76 | L98: 0.3740607847 | M98: 0.3768197869 | N98: 0.3767859176 | O98: 0.3795095009 | P98: 0.005518004259 | Q98: 0.005450265823 | R98: 0.00544871619 | S98: 0.005379441669 | T98: 0.5518004259 | U98: 0.5450265823 | V98: 0.544871619 | W98: 0.5379441669 | X98: -0.01354768736 | Y98: -0.01385761385 | Z98: -0.01385625908 | AA98: -0.01416489034 | AB98: 1.647550212e-07
A99: 0.76 | B99: 0.3795098547 | C99: 0.3830371058 | D99: 0.5574231842 | E99: 0.5574231842 | F99: -1.430599453 | G99: 0.003527251089 | H99: 0.76 | I99: 0.765 | J99: 0.765 | K99: 0.77 | L99: 0.3795100197 | M99: 0.3821997383 | N99: 0.382164326 | O99: 0.3848170953 | P99: 0.005379437054 | Q99: 0.005308612498 | R99: 0.005307075607 | S99: 0.005234728325 | T99: 0.5379437054 | U99: 0.5308612498 | V99: 0.5307075607 | W99: 0.5234728325 | X99: -0.01416491109 | Y99: -0.01447228931 | Z99: -0.01447087281 | AA99: -0.01477685463 | AB99: 1.650131339e-07
A100: 0.77 | B100: 0.3848174448 | C100: 0.3886113376 | D100: 0.5431171897 | E100: 0.5431171897 | F100: -1.492862432 | G100: 0.003793892859 | H100: 0.77 | I100: 0.775 | J100: 0.775 | K100: 0.78 | L100: 0.38481761 | M100: 0.3874349718 | N100: 0.3873980296 | O100: 0.389976926 | P100: 0.00523472357 | Q100: 0.005160839194 | R100: 0.005159316059 | S100: 0.005083923324 | T100: 0.523472357 | U100: 0.5160839194 | V100: 0.5159316059 | W100: 0.5083923324 | X100: -0.01477687522 | Y100: -0.01508150231 | Z100: -0.01508002463 | AA100: -0.0153831547 | AB100: 1.652055946e-07
A101: 0.78 | B101: 0.3899772709 | C101: 0.3940425095 | D101: 0.5281885653 | E101: 0.5281885653 | F101: -1.554577804 | G101: 0.004065238649 | H101: 0.78 | I101: 0.785 | J101: 0.785 | K101: 0.79 | L101: 0.3899774362 | M101: 0.3925193954 | N101: 0.3924809375 | O101: 0.3949829304 | P101: 0.005083918431 | Q101: 0.005007002555 | R101: 0.005005494184 | S101: 0.004927085321 | T101: 0.5083918431 | U101: 0.5007002555 | V101: 0.5005494184 | W101: 0.4927085321 | X101: -0.01538317511 | Y101: -0.01568484928 | Z101: -0.01568331097 | AA101: -0.01598338808 | AB101: 1.653323474e-07
A102: 0.79 | B102: 0.3949832704 | C102: 0.3993243952 | D102: 0.5126427873 | E102: 0.5126427873 | F102: -1.615704667 | G102: 0.004341124825 | H102: 0.79 | I102: 0.795 | J102: 0.795 | K102: 0.8 | L102: 0.3949834358 | M102: 0.3974469759 | N102: 0.3974070174 | O102: 0.3998291064 | P102: 0.004927080291 | Q102: 0.00484716325 | R102: 0.004845670647 | S102: 0.004764276986 | T102: 0.4927080291 | U102: 0.484716325 | V102: 0.4845670647 | W102: 0.4764276986 | X102: -0.0159834083 | Y102: -0.01628192889 | Z102: -0.01628033055 | AA102: -0.0165771547 | AB102: 1.653933626e-07
A103: 0.8 | B103: 0.3998294412 | C103: 0.4044508231 | D103: 0.4964857406 | E103: 0.4964857406 | F103: -1.676202337 | G103: 0.004621381848 | H103: 0.8 | I103: =$H103+$B$13/2 -> 0.805 | J103: 0.805 | K103: 0.81 | L103: 0.3998296066 | M103: 0.4022117425 | N103: 0.4021702996 | O103: 0.4045095167 | P103: 0.004764271821 | Q103: 0.004681385948 | R103: 0.00467991011 | S103: 0.004595564975 | T103: 0.4764271821 | U103: 0.4681385948 | V103: 0.467991011 | W103: 0.4595564975 | X103: -0.01657717471 | Y103: -0.01687234234 | Z103: -0.01687068462 | AA103: -0.01716405711 | AB103: 1.653886366e-07
A104: 0.81 | B104: 0.4045098461 | C104: 0.4094156805 | D104: 0.4797237173 | E104: 0.4797237173 | F104: -1.736030366 | G104: 0.004905834366 | H104: 0.81 | I104: 0.815 | J104: 0.815 | K104: 0.82 | L104: 0.4045100114 | M104: 0.4068077913 | N104: 0.4067648811 | O104: 0.4090182926 | P104: 0.004595559678 | Q104: 0.004509739294 | R104: 0.004508281211 | S104: 0.004421019907 | T104: 0.4595559678 | U104: 0.4509739294 | V104: 0.4508281211 | W104: 0.4421019907 | X104: -0.0171640769 | Y104: -0.01745569352 | Z104: -0.01745397712 | AA104: -0.01774370068 | AB104: 1.653181918e-07
A105: 0.82 | B105: 0.4090186163 | C105: 0.4142129176 | D105: 0.4623634136 | E105: 0.4623634136 | F105: -1.795148568 | G105: 0.005194301303 | H105: 0.82 | I105: 0.825 | J105: 0.825 | K105: 0.83 | L105: 0.4090187815 | M105: 0.4112292888 | N105: 0.4111849295 | O105: 0.4133496381 | P105: 0.00442101448 | Q105: 0.004332295879 | R105: 0.004330856534 | S105: 0.004240716331 | T105: 0.442101448 | U105: 0.4332295879 | V105: 0.4330856534 | W105: 0.4240716331 | X105: -0.01774372023 | Y105: -0.01803158933 | Z105: -0.01802981495 | AA105: -0.01831569386 | AB105: 1.65182077e-07
A106: 0.83 | B106: 0.4133499558 | C106: 0.4188365518 | D106: 0.4444119279 | E106: 0.4444119279 | F106: -1.853517041 | G106: 0.005486595964 | H106: 0.83 | I106: 0.835 | J106: 0.835 | K106: 0.84 | L106: 0.4133501208 | M106: 0.4154704762 | N106: 0.4154246869 | O106: 0.4174978334 | P106: 0.004240710776 | Q106: 0.00414913221 | R106: 0.004147712577 | S106: 0.004054732694 | T106: 0.4240710776 | U106: 0.414913221 | V106: 0.4147712577 | W106: 0.4054732694 | X106: -0.01831571317 | Y106: -0.01859963978 | Z106: -0.01859780821 | AA106: -0.01887964838 | AB106: 1.649803669e-07
A107: 0.84 | B107: 0.4174981449 | C107: 0.4232806711 | D107: 0.4258767575 | E107: 0.4258767575 | F107: -1.911096189 | G107: 0.005782526136 | H107: 0.84 | I107: 0.845 | J107: 0.845 | K107: 0.85 | L107: 0.4174983096 | M107: 0.4195256731 | N107: 0.419478474 | O107: 0.4214572394 | P107: 0.004054727013 | Q107: 0.003960328676 | R107: 0.003958929722 | S107: 0.00386315131 | T107: 0.4054727013 | U107: 0.3960328676 | V107: 0.3958929722 | W107: 0.386315131 | X107: -0.01887966743 | Y107: -0.01915945831 | Z107: -0.01915757034 | AA107: -0.01943517946 | AB107: 1.647131622e-07
A108: 0.85 | B108: 0.4214575444 | C108: 0.4275394386 | D108: 0.4067657956 | E108: 0.4067657956 | F108: -1.967846743 | G108: 0.006081894192 | H108: 0.85 | I108: 0.855 | J108: 0.855 | K108: 0.86 | L108: 0.4214577088 | M108: 0.4233892816 | N108: 0.4233406936 | O108: 0.425222301 | P108: 0.003863145506 | Q108: 0.003765969515 | R108: 0.003764592197 | S108: 0.003666058322 | T108: 0.3863145506 | U108: 0.3765969515 | V108: 0.3764592197 | W108: 0.3666058322 | X108: -0.01943519824 | Y108: -0.01971066196 | Z108: -0.01970871844 | AA108: -0.01998190605 | AB108: 1.643805896e-07
A109: 0.86 | B109: 0.4252225994 | C109: 0.4316070966 | D109: 0.3870873282 | E109: 0.3870873282 | F109: -2.023729787 | G109: 0.006384497208 | H109: 0.86 | I109: 0.865 | J109: 0.865 | K109: 0.87 | L109: 0.4252227634 | M109: 0.4270557896 | N109: 0.4270058348 | O109: 0.4287875514 | P109: 0.003666052398 | Q109: 0.003566142775 | R109: 0.00356478804 | S109: 0.003463543664 | T109: 0.3666052398 | U109: 0.3566142775 | V109: 0.356478804 | W109: 0.3463543664 | X109: -0.01998192454 | Y109: -0.0202528716 | Z109: -0.0202508734 | AA109: -0.02051945102 | AB109: 1.639828019e-07
A110: 0.87 | B110: 0.4287878428 | C110: 0.4354779699 | D110: 0.3668500303 | E110: 0.3668500303 | F110: -2.078706775 | G110: 0.006690127079 | H110: 0.87 | I110: 0.875 | J110: 0.875 | K110: 0.88 | L110: 0.4287880063 | M110: 0.4305197751 | N110: 0.4304684765 | O110: 0.4321476154 | P110: 0.003463537622 | Q110: 0.003360940276 | R110: 0.003359609061 | S110: 0.00325570102 | T110: 0.3463537622 | U110: 0.3360940276 | V110: 0.3359609061 | W110: 0.325570102 | X110: -0.02051946921 | Y110: -0.02078571212 | Z110: -0.02078366017 | AA110: -0.02104744139 | AB110: 1.635199774e-07
A111: 0.88 | B111: 0.4321478995 | C111: 0.4391464702 | D111: 0.3460629626 | E111: 0.3460629626 | F111: -2.132739558 | G111: 0.006998570635 | H111: 0.88 | I111: 0.885 | J111: 0.885 | K111: 0.89 | L111: 0.4321480625 | M111: 0.43377591 | N111: 0.4337232913 | O111: 0.4352972133 | P111: 0.003255694863 | Q111: 0.003150457567 | R111: 0.0031491508 | S111: 0.003042627784 | T111: 0.3255694863 | U111: 0.3150457567 | V111: 0.31491508 | W111: 0.3042627784 | X111: -0.02104745928 | Y111: -0.02130881269 | Z111: -0.02130670794 | AA111: -0.02156550857 | AB111: 1.629923206e-07
A112: 0.89 | B112: 0.43529749 | C112: 0.4426070998 | D112: 0.324735567 | E112: 0.324735567 | F112: -2.185790402 | G112: 0.007309609771 | H112: 0.89 | I112: 0.895 | J112: 0.895 | K112: 0.9 | L112: 0.4352976524 | M112: 0.4368189632 | N112: 0.4367650494 | O112: 0.4382311649 | P112: 0.003042621515 | Q112: 0.002934793884 | R112: 0.00293351248 | S112: 0.002824425011 | T112: 0.3042621515 | U112: 0.2934793884 | V112: 0.293351248 | W112: 0.2824425011 | X112: -0.02156552613 | Y112: -0.02182180694 | Z112: -0.02181965039 | AA112: -0.02207328849 | AB112: 1.624000613e-07
A113: 0.9 | B113: 0.4382314339 | C113: 0.4458544555 | D113: 0.302877663 | E113: 0.302877663 | F113: -2.237822011 | G113: 0.007623021576 | H113: 0.9 | I113: 0.905 | J113: 0.905 | K113: 0.91 | L113: 0.4382315956 | M113: 0.439643805 | N113: 0.4395886217 | O113: 0.4409443926 | P113: 0.002824418633 | Q113: 0.002714052104 | R113: 0.002712796967 | S113: 0.002601197374 | T113: 0.2824418633 | U113: 0.2714052104 | V113: 0.2712796967 | W113: 0.2601197374 | X113: -0.02207330572 | Y113: -0.02232433317 | Z113: -0.02232212584 | AA113: -0.0225704219 | AB113: 1.617434552e-07
A114: 0.91 | B114: 0.4409446536 | C114: 0.4488832321 | D114: 0.2804994428 | E114: 0.2804994428 | F114: -2.288797548 | G114: 0.00793857846 | H114: 0.91 | I114: 0.915 | J114: 0.915 | K114: 0.92 | L114: 0.4409448147 | M114: 0.4422454101 | N114: 0.442188984 | O114: 0.4434319254 | P114: 0.00260119089 | Q114: 0.002488338696 | R114: 0.002487110717 | S114: 0.002373053115 | T114: 0.260119089 | U114: 0.2488338696 | V114: 0.2487110717 | W114: 0.2373053115 | X114: -0.02257043879 | Y114: -0.02281603457 | Z114: -0.02281377753 | AA114: -0.02305655453 | AB114: 1.61022783e-07
A115: 0.92 | B115: 0.4434321782 | C115: 0.4516882265 | D115: 0.2576114674 | E115: 0.2576114674 | F115: -2.338680657 | G115: 0.008256048299 | H115: 0.92 | I115: 0.925 | J115: 0.925 | K115: 0.93 | L115: 0.4434323385 | M115: 0.4446188617 | N115: 0.4445612203 | O115: 0.4456889022 | P115: 0.002373046527 | Q115: 0.002257763672 | R115: 0.00225656373 | S115: 0.00214010399 | T115: 0.2373046527 | U115: 0.2257763672 | V115: 0.225656373 | W115: 0.214010399 | X115: -0.02305657105 | Y115: -0.02329655941 | Z115: -0.02329425375 | AA115: -0.02353133727 | AB115: 1.602383511e-07
A116: 0.93 | B116: 0.4456891466 | C116: 0.4542643412 | D116: 0.2342246608 | E116: 0.2342246608 | F116: -2.387435483 | G116: 0.008575194571 | H116: 0.93 | I116: 0.935 | J116: 0.935 | K116: 0.94 | L116: 0.445689306 | M116: 0.4467593547 | N116: 0.4467005263 | O116: 0.4477105755 | P116: 0.002140097303 | Q116: 0.002022440536 | R116: 0.002021269497 | S116: 0.001902465222 | T116: 0.2140097303 | U116: 0.2022440536 | V116: 0.2021269497 | W116: 0.1902465222 | X116: -0.02353135343 | Y116: -0.02376556125 | Z116: -0.02376320811 | AA116: -0.02399442644 | AB116: 1.59390491e-07
A117: 0.94 | B117: 0.4477108113 | C117: 0.4566065878 | D117: 0.210350306 | E117: 0.210350306 | F117: -2.435026693 | G117: 0.008895776503 | H117: 0.94 | I117: 0.945 | J117: 0.945 | K117: 0.95 | L117: 0.4477109698 | M117: 0.448662199 | N117: 0.4486022129 | O117: 0.4494923147 | P117: 0.001902458439 | Q117: 0.001782486228 | R117: 0.001781344943 | S117: 0.001660255442 | T117: 0.1902458439 | U117: 0.1782486228 | V117: 0.1781344943 | W117: 0.1660255442 | X117: -0.02399444221 | Y117: -0.02422269915 | Z117: -0.0242202997 | AA117: -0.02444548393 | AB117: 1.584795593e-07
A118: 0.95 | B118: 0.4494925417 | C118: 0.4587100909 | D118: 0.186000039 | E118: 0.186000039 | F118: -2.481419497 | G118: 0.009217549218 | H118: 0.95 | I118: 0.955 | J118: 0.955 | K118: 0.96 | L118: 0.4494926992 | M118: 0.4503228234 | N118: 0.4502617097 | O118: 0.4510296095 | P118: 0.001660248566 | Q118: 0.001538021069 | R118: 0.001536910376 | S118: 0.001413596633 | T118: 0.1660248566 | U118: 0.1538021069 | V118: 0.1536910376 | W118: 0.1413596633 | X118: -0.0244454993 | Y118: -0.02466763785 | Z118: -0.0246651933 | AA118: -0.0248841774 | AB118: 1.575059373e-07
A119: 0.96 | B119: 0.4510298274 | C119: 0.4605700913 | D119: 0.161185844 | E119: 0.161185844 | F119: -2.526579667 | G119: 0.009540263891 | H119: 0.96 | I119: 0.965 | J119: 0.965 | K119: 0.97 | L119: 0.4510299838 | M119: 0.4517367787 | N119: 0.4516745682 | O119: 0.4523180733 | P119: 0.001413589667 | Q119: 0.001289168705 | R119: 0.001288089427 | S119: 0.001162614072 | T119: 0.1413589667 | U119: 0.1289168705 | V119: 0.1288089427 | W119: 0.1162614072 | X119: -0.02488419238 | Y119: -0.02510004799 | Z119: -0.02509755957 | AA119: -0.02531018053 | AB119: 1.564700313e-07
A120: 0.97 | B120: 0.4523182818 | C120: 0.4621819497 | D120: 0.1359200474 | E120: 0.1359200474 | F120: -2.570473559 | G120: 0.0098636679 | H120: 0.97 | I120: 0.975 | J120: 0.975 | K120: 0.98 | L120: 0.4523184372 | M120: 0.4528997407 | N120: 0.4528364652 | O120: 0.4533534462 | P120: 0.001162607021 | Q120: 0.001036056045 | R120: 0.001035008989 | S120: 0.0009074362682 | T120: 0.1162607021 | U120: 0.1036056045 | V120: 0.1035008989 | W120: 0.09074362682 | X120: -0.02531019509 | Y120: -0.02551960625 | Z120: -0.02551707523 | AA120: -0.02572317314 | AB120: 1.553722719e-07
A121: 0.98 | B121: 0.4533536452 | C121: 0.4635411502 | D121: 0.1102153118 | E121: 0.1102153118 | F121: -2.61306813 | G121: 0.01018750499 | H121: 0.98 | I121: 0.985 | J121: 0.985 | K121: 0.99 | L121: 0.4533537994 | M121: 0.453807514 | N121: 0.453743206 | O121: 0.4541315986 | P121: 0.0009074291352 | Q121: 0.0007788131989 | R121: 0.0007777991571 | S121: 0.0006481949022 | T121: 0.09074291352 | U121: 0.07788131989 | V121: 0.07777991571 | W121: 0.06481949022 | X121: -0.02572318727 | Y121: -0.02592599563 | Z121: -0.02592342331 | AA121: -0.02612284142 | AB121: 1.542131143e-07
A122: 0.99 | B122: 0.4541317879 | C122: 0.4646433033 | D122: 0.08408463048 | E122: 0.08408463048 | F122: -2.654330961 | G122: 0.01051151543 | H122: 0.99 | I122: 0.995 | J122: 0.995 | K122: 1 | L122: 0.4541319409 | M122: 0.4544560347 | N122: 0.4543907276 | O122: 0.454648534 | P122: 0.000648187691 | Q122: 0.0005175734154 | R122: 0.0005165931634 | S122: 0.0003850247586 | T122: 0.0648187691 | U122: 0.05175734154 | V122: 0.05165931634 | W122: 0.03850247586 | X122: -0.02612285511 | Y122: -0.02631890552 | Z122: -0.02631629324 | AA122: -0.02650887809 | AB122: 1.529930378e-07
A123: 1 | B123: 0.4546487134 | C123: 0.4654841496 | D123: 0.05754132087 | E123: 0.05754132087 | F123: -2.694230271 | G123: 0.01083543618 | H123: 1 | I123: =$H123+$B$13/2 -> 1.005 | J123: 1.005 | K123: 1.01 | L123: 0.4546488651 | M123: 0.4548413739 | N123: 0.4547751016 | O123: 0.4549003924 | P123: 0.0003850174731 | Q123: 0.0002524730164 | R123: 0.0002515273131 | S123: 0.000118063662 | T123: 0.03850174731 | U123: 0.02524730164 | V123: 0.02515273131 | W123: 0.0118063662 | X123: -0.02650889134 | Y123: -0.026698032 | Z123: -0.02669538111 | AA123: -0.02688098262 | AB123: 1.517125456e-07
A124: 1.01 | B124: 0.4549005617 | C124: 0.4660595628 | D124: 0.03059901816 | E124: 0.03059901816 | F124: -2.732734943 | G124: 0.01115900109 | H124: 1.01 | I124: 1.015 | J124: 1.015 | K124: 1.02 | L124: 0.4549007121 | M124: 0.4549597402 | N124: 0.4548925378 | O124: 0.454883453 | P124: 0.0001180563062 | Q124: -1.634867086e-05 | R124: -1.725908345e-05 | S124: -0.0001525475921 | T124: 0.01180563062 | U124: -0.001634867086 | V124: -0.001725908345 | W124: -0.01525475921 | X124: -0.02688099541 | Y124: -0.02706307792 | Z124: -0.02706038982 | AA124: -0.02723886136 | AB124: 1.503721648e-07
A125: 1.02 | B125: 0.454883612 | C125: 0.466365553 | D125: 0.003271668725 | E125: 0.003271668725 | F125: -2.769814536 | G125: 0.011481941 | H125: 1.02 | I125: 1.025 | J125: 1.025 | K125: 1.03 | L125: 0.454883761 | M125: 0.4548074835 | N125: 0.4547393863 | O125: 0.4545941372 | P125: -0.0001525550143 | Q125: -0.0002887493827 | R125: -0.0002896237801 | S125: -0.0004266653071 | T125: -0.01525550143 | U125: -0.02887493827 | V125: -0.02896237801 | W125: -0.04266653071 | X125: -0.02723887368 | Y125: -0.02741375317 | Z125: -0.02741102928 | AA125: -0.02758222776 | AB125: 1.489724459e-07
A126: 1.03 | B126: 0.4545942857 | C126: 0.4663982697 | D126: -0.02442647664 | E126: -0.02442647664 | F126: -2.805439306 | G126: 0.011803984 | H126: 1.03 | I126: 1.035 | J126: 1.035 | K126: 1.04 | L126: 0.4545944332 | M126: 0.4543810968 | N126: 0.4543121412 | O126: 0.4540290115 | P126: -0.0004266727915 | Q126: -0.0005645839895 | R126: -0.0005654216653 | S126: -0.0007041429568 | T126: -0.04266727915 | U126: -0.05645839895 | V126: -0.05654216653 | W126: -0.07041429568 | X126: -0.0275822396 | Y126: -0.02774977475 | Z126: -0.02774701653 | AA126: -0.02791080251 | AB126: 1.47513963e-07
A127: 1.04 | B127: 0.4540291493 | C127: 0.4661540049 | D127: -0.0524808697 | E127: -0.0524808697 | F127: -2.839580224 | G127: 0.01212485556 | H127: 1.04 | I127: 1.045 | J127: 1.045 | K127: 1.05 | L127: 0.4540292953 | M127: 0.4536772201 | N127: 0.4536074431 | O127: 0.4531847905 | P127: -0.0007041504993 | Q127: -0.0008437045686 | R127: -0.0008445048346 | S127: -0.0009848312591 | T127: -0.07041504993 | U127: -0.08437045686 | V127: -0.08445048346 | W127: -0.09848312591 | X127: -0.02791081386 | Y127: -0.02807086706 | Z127: -0.02806807598 | AA127: -0.02822431371 | AB127: 1.45997313e-07
A128: 1.05 | B128: 0.4531849175 | C128: 0.4656291962 | D128: -0.08087667194 | E128: -0.08087667194 | F128: -2.872208994 | G128: 0.01244427872 | H128: 1.05 | I128: 1.055 | J128: 1.055 | K128: 1.06 | L128: 0.4531850619 | M128: 0.4526926425 | N128: 0.4526220817 | O128: 0.4520583392 | P128: -0.0009848388554 | Q128: -0.001125960478 | R128: -0.001126722665 | S128: -0.00126857825 | T128: -0.09848388554 | U128: -0.1125960478 | V128: -0.1126722665 | W128: -0.126857825 | X128: -0.02822432457 | Y128: -0.02837676195 | Z128: -0.02837393951 | AA128: -0.02852249707 | AB128: 1.444231158e-07
A129: 1.06 | B129: 0.4520584552 | C129: 0.4648204295 | D129: -0.1095987619 | E129: -0.1095987619 | F129: -2.903298068 | G129: 0.01276197427 | H129: 1.06 | I129: 1.065 | J129: 1.065 | K129: 1.07 | L129: 0.452058598 | M129: 0.4514243051 | N129: 0.4513529988 | O129: 0.4506466761 | P129: -0.001268585896 | Q129: -0.001411198433 | R129: -0.001411921891 | S129: -0.001555229363 | T129: -0.1268585896 | U129: -0.1411198433 | V129: -0.1411921891 | W129: -0.1555229363 | X129: -0.02852250742 | Y129: -0.02866719896 | Z129: -0.0286643467 | AA129: -0.02880509603 | AB129: 1.427920137e-07
A130: 1.07 | B130: 0.4506467809 | C130: 0.4637244419 | D130: -0.1386317426 | E130: -0.1386317426 | F130: -2.932820666 | G130: 0.01307766095 | H130: 1.07 | I130: 1.075 | J130: 1.075 | K130: 1.08 | L130: 0.450646922 | M130: 0.4498693035 | N130: 0.4497972907 | O130: 0.4489469753 | P130: -0.001555237054 | Q130: -0.001699262584 | R130: -0.001699946681 | S130: -0.001844627504 | T130: -0.1555237054 | U130: -0.1699262584 | V130: -0.1699946681 | W130: -0.1844627504 | X130: -0.02880510587 | Y130: -0.02894192545 | Z130: -0.02893904494 | AA130: -0.02907186194 | AB130: 1.411046715e-07
A131: 1.08 | B131: 0.4489470688 | C131: 0.4623381244 | D131: -0.1679599492 | E131: -0.1679599492 | F131: -2.96075079 | G131: 0.01339105563 | H131: 1.08 | I131: 1.085 | J131: 1.085 | K131: 1.09 | L131: 0.4489472082 | M131: 0.4480248906 | N131: 0.4479522109 | O131: 0.4469565695 | P131: -0.001844635235 | Q131: -0.001989994591 | R131: -0.001990638719 | S131: -0.002136613131 | T131: -0.1844635235 | U131: -0.1989994591 | V131: -0.1990638719 | W131: -0.2136613131 | X131: -0.02907187125 | Y131: -0.02920069677 | Z131: -0.02919778959 | AA131: -0.0293225542 | AB131: 1.39361776e-07
A132: 1.09 | B132: 0.4469566515 | C132: 0.460658525 | D132: -0.1975674571 | E132: -0.1975674571 | F132: -2.987063242 | G132: 0.0137018735 | H132: 1.09 | I132: 1.095 | J132: 1.095 | K132: 1.1 | L132: 0.446956789 | M132: 0.4458884786 | N132: 0.4458151722 | O132: 0.4446729517 | P132: -0.002136620899 | Q132: -0.002283233714 | R132: -0.002283837281 | S132: -0.00243102434 | T132: -0.2136620899 | U132: -0.2283233714 | V132: -0.2283837281 | W132: -0.243102434 | X132: -0.02932256298 | Y132: -0.02944327641 | Z132: -0.02944034415 | AA132: -0.02955694041 | AB132: 1.375640356e-07
A133: 1.1 | B133: 0.4446730221 | C133: 0.4586828504 | D133: -0.2274380895 | E133: -0.2274380895 | F133: -3.011733636 | G133: 0.01400982828 | H133: 1.1 | I133: 1.105 | J133: 1.105 | K133: 1.11 | L133: 0.4446731578 | M133: 0.4434576417 | N133: 0.4433837494 | O133: 0.4420937785 | P133: -0.00243103214 | Q133: -0.002578816883 | R133: -0.00257937932 | S133: -0.002727696944 | T133: -0.243103214 | U133: -0.2578816883 | V133: -0.257937932 | W133: -0.2727696944 | X133: -0.02955694866 | Y133: -0.0296694361 | Z133: -0.02966648041 | AA133: -0.02977479656 | AB133: 1.357121804e-07
A134: 1.11 | B134: 0.4420938371 | C134: 0.4564084695 | D134: -0.2575554259 | E134: -0.2575554259 | F134: -3.03473842 | G134: 0.0143146324 | H134: 1.11 | I134: 1.115 | J134: 1.115 | K134: 1.12 | L134: 0.4420939709 | M134: 0.4407301185 | N134: 0.4406556815 | O134: 0.4392168713 | P134: -0.00272770477 | Q134: -0.002876578791 | R134: -0.00287709955 | S134: -0.003026464556 | T134: -0.272770477 | U134: -0.2876578791 | V134: -0.287709955 | W134: -0.3026464556 | X134: -0.02977480426 | Y134: -0.02987895605 | Z134: -0.02987597857 | AA134: -0.02997590709 | AB134: 1.338069614e-07
A135: 1.12 | B135: 0.439216918 | C135: 0.4538329152 | D135: -0.2879028101 | E135: -0.2879028101 | F135: -3.056054885 | G135: 0.01461599718 | H135: 1.12 | I135: 1.125 | J135: 1.125 | K135: 1.13 | L135: 0.4392170499 | M135: 0.4377038137 | N135: 0.4376288739 | O135: 0.4360402194 | P135: -0.003026472404 | Q135: -0.003176351976 | R135: -0.003176830529 | S135: -0.003327158679 | T135: -0.3026472404 | U135: -0.3176351976 | V135: -0.3176830529 | W135: -0.3327158679 | X135: -0.02997591424 | Y135: -0.030071625 | Z135: -0.03006862741 | AA135: -0.03016006511 | AB135: 1.318491508e-07
A136: 1.13 | B136: 0.436040254 | C136: 0.4509538871 | D136: -0.318463359 | E136: -0.318463359 | F136: -3.075661182 | G136: 0.01491363309 | H136: 1.13 | I136: 1.135 | J136: 1.135 | K136: 1.14 | L136: 0.4360403839 | M136: 0.4343768006 | N136: 0.4343014004 | O136: 0.4325619811 | P136: -0.003327166545 | Q136: -0.003477966903 | R136: -0.003478402747 | S136: -0.003629608789 | T136: -0.3327166545 | U136: -0.3477966903 | V136: -0.3478402747 | W136: -0.3629608789 | X136: -0.03016007169 | Y136: -0.0302472404 | Z136: -0.03024422439 | AA136: -0.03032707246 | AB136: 1.29839541e-07
A137: 1.14 | B137: 0.4325620037 | C137: 0.4477692535 | D137: -0.3492199708 | E137: -0.3492199708 | F137: -3.093536335 | G137: 0.01520724988 | H137: 1.14 | I137: 1.145 | J137: 1.145 | K137: 1.15 | L137: 0.4325621314 | M137: 0.4307473231 | N137: 0.4306715054 | O137: 0.4287804867 | P137: -0.003629616668 | Q137: -0.00378125206 | R137: -0.00378164471 | S137: -0.003933642426 | T137: -0.3629616668 | U137: -0.378125206 | V137: -0.378164471 | W137: -0.3933642426 | X137: -0.03032707847 | Y137: -0.03040560852 | Z137: -0.03040257581 | AA137: -0.03047673989 | AB137: 1.277789448e-07
A138: 1.15 | B138: 0.428780497 | C138: 0.4442770538 | D138: -0.3801553341 | E138: -0.3801553341 | F138: -3.109660258 | G138: 0.01549655683 | H138: 1.15 | I138: 1.155 | J138: 1.155 | K138: 1.16 | L138: 0.4287806227 | M138: 0.4268137975 | N138: 0.4267376057 | O138: 0.4246942396 | P138: -0.003933650313 | Q138: -0.004086034039 | R138: -0.004086383036 | S138: -0.004239085282 | T138: -0.3933650313 | U138: -0.4086034039 | V138: -0.4086383036 | W138: -0.4239085282 | X138: -0.03047674533 | Y138: -0.03054654461 | Z138: -0.03054349694 | AA138: -0.0306088872 | AB138: 1.256681947e-07
A139: 1.16 | B139: 0.4246942375 | C139: 0.4404755005 | D139: -0.4112519367 | E139: -0.4112519367 | F139: -3.124013763 | G139: 0.01578126295 | H139: 1.16 | I139: 1.165 | J139: 1.165 | K139: 1.17 | L139: 0.424694361 | M139: 0.4225748145 | N139: 0.4224982922 | O139: 0.4203019185 | P139: -0.004239093172 | Q139: -0.004392137632 | R139: -0.004392442537 | S139: -0.004545761293 | T139: -0.4239093172 | U139: -0.4392137632 | V139: -0.4392442537 | W139: -0.4545761293 | X139: -0.03060889205 | Y139: -0.03066987299 | Z139: -0.0306668121 | AA139: -0.03072334327 | AB139: 1.23508143e-07
A140: 1.17 | B140: 0.4203019039 | C140: 0.4363629811 | D140: -0.4424920743 | E140: -0.4424920743 | F140: -3.136578577 | G140: 0.01606107718 | H140: 1.17 | I140: 1.175 | J140: 1.175 | K140: 1.18 | L140: 0.4203020252 | M140: 0.4180291407 | N140: 0.4179523323 | O140: 0.4156023789 | P140: -0.004545769181 | Q140: -0.004699385919 | R140: -0.004699646317 | S140: -0.004853492729 | T140: -0.4545769181 | U140: -0.4699385919 | V140: -0.4699646317 | W140: -0.4853492729 | X140: -0.03072334754 | Y140: -0.03077542716 | Z140: -0.03077235483 | AA140: -0.03081994628 | AB140: 1.212996611e-07
A141: 1.18 | B141: 0.4156023518 | C141: 0.4319380604 | D141: -0.4738578601 | E141: -0.4738578601 | F141: -3.147337354 | G141: 0.01633570857 | H141: 1.18 | I141: 1.185 | J141: 1.185 | K141: 1.19 | L141: 0.4156024708 | M141: 0.4131757205 | N141: 0.4130986707 | O141: 0.410594655 | P141: -0.004853500611 | Q141: -0.005007600361 | R141: -0.005007815861 | S141: -0.005162100291 | T141: -0.4853500611 | U141: -0.5007600361 | V141: -0.5007815861 | W141: -0.5162100291 | X141: -0.03081994996 | Y141: -0.03086304997 | Z141: -0.03085996797 | AA141: -0.03089854377 | AB141: 1.190436393e-07
A142: 1.19 | B142: 0.4105946152 | C142: 0.4271994818 | D142: -0.5053312337 | E142: -0.5053312337 | F142: -3.156273685 | G142: 0.01660486656 | H142: 1.19 | I142: 1.195 | J142: 1.195 | K142: 1.2 | L142: 0.410594732 | M142: 0.4080136779 | N142: 0.4079364315 | O142: 0.4052779608 | P142: -0.00516210816 | Q142: -0.005316600894 | R142: -0.005316771128 | S142: -0.005471403198 | T142: -0.516210816 | U142: -0.5316600894 | V142: -0.5316771128 | W142: -0.5471403198 | X142: -0.03089854685 | Y142: -0.03093259365 | Z142: -0.0309295038 | AA142: -0.03095899274 | AB142: 1.167409859e-07
A143: 1.2 | B143: 0.4052779083 | C143: 0.4221461694 | D143: -0.5368939705 | E143: -0.5368939705 | F143: -3.163372109 | G143: 0.01686826111 | H143: 1.2 | I143: =$H143+$B$13/2 -> 1.205 | J143: 1.205 | K143: 1.21 | L143: 0.4052780227 | M143: 0.4025423172 | N143: 0.4024649197 | O143: 0.3996516921 | P143: -0.005471411051 | Q143: -0.005626206027 | R143: -0.005626330651 | S143: -0.005781219292 | T143: -0.5471411051 | U143: -0.5626206027 | V143: -0.5626330651 | W143: -0.5781219292 | X143: -0.03095899522 | Y143: -0.03098392 | Z143: -0.0309808241 | AA143: -0.03100115978 | AB143: 1.14392628e-07
A144: 1.21 | B144: 0.3996516268 | C144: 0.4167772297 | D144: -0.5685276916 | E144: -0.5685276916 | F144: -3.168618128 | G144: 0.01712560296 | H144: 1.21 | I144: 1.215 | J144: 1.215 | K144: 1.22 | L144: 0.3996517388 | M144: 0.3967611252 | N144: 0.3966836223 | O144: 0.3937154271 | P144: -0.005781227123 | Q144: -0.005936232931 | R144: -0.005936311625 | S144: -0.006091365126 | T144: -0.5781227123 | U144: -0.5936232931 | V144: -0.5936311625 | W144: -0.6091365126 | X144: -0.03100116165 | Y144: -0.03101690039 | Z144: -0.03101380028 | AA144: -0.03102492113 | AB144: 1.119995102e-07
A145: 1.22 | B145: 0.393715349 | C145: 0.4110919528 | D145: -0.6002138729 | E145: -0.6002138729 | F145: -3.171998215 | G145: 0.01737660384 | H145: 1.22 | I145: 1.225 | J145: 1.225 | K145: 1.23 | L145: 0.3937154585 | M145: 0.3906697721 | N145: 0.3905922098 | O145: 0.3874689285 | P145: -0.00609137293 | Q145: -0.006246497542 | R145: -0.00624653001 | S145: -0.006401656065 | T145: -0.609137293 | U145: -0.6246497542 | V145: -0.624653001 | W145: -0.6401656065 | X145: -0.03102492238 | Y145: -0.03103141596 | Z145: -0.03102831347 | AA145: -0.03103016281 | AB145: 1.095625941e-07
A146: 1.23 | B146: 0.3874688374 | C146: 0.4050898141 | D146: -0.631933855 | E146: -0.631933855 | F146: -3.173499823 | G146: 0.01762097664 | H146: 1.23 | I146: 1.235 | J146: 1.235 | K146: 1.24 | L146: 0.3874689445 | M146: 0.3842681126 | N146: 0.3841905372 | O146: 0.3809121439 | P146: -0.006401663837 | Q146: -0.006556814654 | R146: -0.006556800625 | S146: -0.006711906383 | T146: -0.6401663837 | U146: -0.6556814654 | V146: -0.6556800625 | W146: -0.6711906383 | X146: -0.03103016345 | Y146: -0.03102735764 | Z146: -0.03102425462 | AA146: -0.0310167807 | AB146: 1.070828587e-07
A147: 1.24 | B147: 0.3809120398 | C147: 0.3987704755 | D147: -0.6636688533 | E147: -0.6636688533 | F147: -3.173111397 | G147: 0.0178584357 | H147: 1.24 | I147: 1.245 | J147: 1.245 | K147: 1.25 | L147: 0.3809121444 | M147: 0.3775561873 | N147: 0.3774786454 | O147: 0.3740452072 | P147: -0.006711914118 | Q147: -0.006866998021 | R147: -0.006866937249 | S147: -0.007021929363 | T147: -0.6711914118 | U147: -0.6866998021 | V147: -0.6866937249 | W147: -0.7021929363 | X147: -0.03101678072 | Y147: -0.03100462623 | Z147: -0.03100152456 | AA147: -0.0309846806 | AB147: 1.045612995e-07
A148: 1.25 | B148: 0.3740450901 | C148: 0.392133787 | D148: -0.6953999672 | E148: -0.6953999672 | F148: -3.170822379 | G148: 0.01808869694 | H148: 1.25 | I148: 1.255 | J148: 1.255 | K148: 1.26 | L148: 0.3740451921 | M148: 0.3705342235 | N148: 0.3704567618 | O148: 0.3668684393 | P148: -0.007021937056 | Q148: -0.007176860456 | R148: -0.007176752719 | S148: -0.007331537397 | T148: -0.7021937056 | U148: -0.7176860456 | V148: -0.7176752719 | W148: -0.7331537397 | X148: -0.03098467999 | Y148: -0.03096313255 | Z148: -0.03096003408 | AA148: -0.03093377832 | AB148: 1.019989279e-07
A149: 1.26 | B149: 0.3668683092 | C149: 0.3851797873 | D149: -0.727108191 | E149: -0.727108191 | F149: -3.166623224 | G149: 0.01831147814 | H149: 1.26 | I149: 1.265 | J149: 1.265 | K149: 1.27 | L149: 0.3668684086 | M149: 0.3632026361 | N149: 0.3631253016 | O149: 0.3593823496 | P149: -0.007331545042 | Q149: -0.007486213927 | R149: -0.007486059029 | S149: -0.007640542082 | T149: -0.7331545042 | U149: -0.7486213927 | V149: -0.7486059029 | W149: -0.7640542082 | X149: -0.03093377709 | Y149: -0.03090279743 | Z149: -0.03089970405 | AA149: -0.03086399976 | AB149: 9.939677131e-08
A150: 1.27 | B150: 0.3593822063 | C150: 0.3779087054 | D150: -0.7587744233 | E150: -0.7587744233 | F150: -3.160505399 | G150: 0.01852649909 | H150: 1.27 | I150: 1.275 | J150: 1.275 | K150: 1.28 | L150: 0.3593823031 | M150: 0.3555620283 | N150: 0.3554848683 | O150: 0.3515876357 | P150: -0.007640549675 | Q150: -0.007794869664 | R150: -0.007794667434 | S150: -0.007948754329 | T150: -0.7640549675 | U150: -0.7794869664 | V150: -0.7794667434 | W150: -0.7948754329 | X150: -0.0308639979 | Y150: -0.03082355183 | Z150: -0.03082046544 | AA150: -0.03077528097 | AB150: 9.675587231e-08
A151: 1.28 | B151: 0.3515874793 | C151: 0.3703209612 | D151: -0.7903794772 | E151: -0.7903794772 | F151: -3.152461399 | G151: 0.01873348188 | H151: 1.28 | I151: 1.285 | J151: 1.285 | K151: 1.29 | L151: 0.3515875734 | M151: 0.3476131925 | N151: 0.3475362543 | O151: 0.3434851848 | P151: -0.007948761864 | Q151: -0.008102638256 | R151: -0.008102388548 | S151: -0.008255984458 | T151: -0.7948761864 | U151: -0.8102638256 | V151: -0.8102388548 | W151: -0.8255984458 | X151: -0.03077527848 | Y151: -0.03072533692 | Z151: -0.03072225939 | AA151: -0.03066756822 | AB151: 9.407728868e-08
A152: 1.29 | B152: 0.3434850154 | C152: 0.3624171664 | D152: -0.8219040912 | E152: =D152 -> -0.8219040912 | F152: -3.142484748 | G152: =C152-B152 -> 0.01893215105 | H152: 1.29 | I152: 1.295 | J152: 1.295 | K152: =$H152+$B$13 -> 1.3 | L152: 0.3434851067 | M152: 0.3393571108 | N152: 0.3392804419 | O152: 0.3350760743 | P152: -0.008255991929 | Q152: -0.008409329755 | R152: -0.00840903245 | S152: -0.008562042302 | T152: -0.8255991929 | U152: -0.8409329755 | V152: -0.840903245 | W152: -0.8562042302 | X152: -0.03066756509 | Y152: -0.03060810406 | Z152: -0.0306050373 | AA152: -0.03054081804 | AB152: =L152-B152 -> 9.136209228e-08
A153: =A152+$B$13 -> 1.3 | B153: =$B$14+0.5*A153*SIN($B$10*A153) -> 0.3350758917 | C153: =C152+$B$13*E152 -> 0.3541981255 | D153: =D152+$B$13*F152 -> -0.8533289387 | E153: -0.8533289387 | F153: =-$B$11*C153+$B$12*COS($B$10*A153) -> -3.130570009 | G153: 0.01912223383 | H153: =A153 -> 1.3 | I153: 1.305 | J153: 1.305 | K153: 1.31 | L153: =L152+(1/6)*(P152+2*Q152+2*R152+S152) -> 0.3350759803 | M153: =$L153+P153/2 -> 0.3307949554 | N153: =$L153+Q153/2 -> 0.3307186034 | O153: =$L153+R153 -> 0.3263615715 | P153: =$B$13*T153 -> -0.008562049706 | Q153: =$B$13*U153 -> -0.008714753777 | R153: =$B$13*V153 -> -0.008714408781 | S153: =$B$13*W153 -> -0.008866737315 | T153: =T152+(1/6)*(X152+2*Y152+2*Z152+AA152) -> -0.8562049706 | U153: =$T153+X153/2 -> -0.8714753777 | V153: =$T153+Y153/2 -> -0.8714408781 | W153: =$T153+Z153 -> -0.8866737315 | X153: =$B$13*(-$B$11*L153+$B$12*COS($B$10*H153)) -> -0.03054081428 | Y153: =$B$13*(-$B$11*M153+$B$12*COS($B$10*I153)) -> -0.03047181496 | Z153: =$B$13*(-$B$11*N153+$B$12*COS($B$10*J153)) -> -0.03046876088 | AA153: =$B$13*(-$B$11*O153+$B$12*COS($B$10*K153)) -> -0.03039499729 | AB153: 8.861136935e-08
A154: 1.31 | B154: 0.3263613758 | C154: 0.3456648361 | D154: -0.8846346388 | E154: -0.8846346388 | F154: -3.116712787 | G154: 0.01930346034 | H154: 1.31 | I154: 1.315 | J154: 1.315 | K154: 1.32 | L154: 0.3263614616 | M154: 0.3219280893 | N154: 0.3218521018 | O154: 0.3173431348 | P154: -0.008866744645 | Q154: -0.009018719609 | R154: -0.009018326853 | S154: -0.009169878666 | T154: -0.8866744645 | U154: -0.9018719609 | V154: -0.9018326853 | W154: -0.9169878666 | X154: -0.03039499289 | Y154: -0.03031644165 | Z154: -0.03031340215 | AA154: -0.0302300832 | AB154: 8.582621952e-08
A155: 1.32 | B155: 0.3173429259 | C155: 0.3368184897 | D155: -0.9158017667 | E155: -0.9158017667 | F155: -3.10090974 | G155: 0.01947556384 | H155: 1.32 | I155: 1.325 | J155: 1.325 | K155: 1.33 | L155: 0.3173430089 | M155: 0.3127580659 | N155: 0.3126824907 | O155: 0.3080224132 | P155: -0.009169885917 | Q155: -0.009321036308 | R155: -0.00932059575 | S155: -0.009471275353 | T155: -0.9169885917 | U155: -0.9321036308 | V155: -0.932059575 | W155: -0.9471275353 | X155: -0.03023007816 | Y155: -0.03014196656 | Z155: -0.03013894355 | AA155: -0.0300460634 | AB155: 8.300775584e-08
A156: 1.33 | B156: 0.3080221912 | C156: 0.3276604721 | D156: -0.9468108641 | E156: -0.9468108641 | F156: -3.083158576 | G156: 0.01963828089 | H156: 1.33 | I156: 1.335 | J156: 1.335 | K156: 1.34 | L156: 0.3080222713 | M156: 0.3032866301 | N156: 0.3032115149 | O156: 0.2984012469 | P156: -0.00947128252 | Q156: -0.009621512809 | R156: -0.009621024433 | S156: -0.0097707363 | T156: -0.947128252 | U156: -0.9621512809 | V156: -0.9621024433 | W156: -0.97707363 | X156: -0.03004605773 | Y156: -0.02994838254 | Z156: -0.02994537793 | AA156: -0.02984293599 | AB156: 8.015710407e-08
A157: 1.34 | B157: 0.2984010118 | C157: 0.3181923634 | D157: -0.9776424498 | E157: -0.9776424498 | F157: -3.063458065 | G157: 0.01979135158 | H157: 1.34 | I157: 1.345 | J157: 1.345 | K157: 1.35 | L157: 0.2984010891 | M157: 0.2935157174 | N157: 0.2934411101 | O157: 0.2884816673 | P157: -0.009770743378 | Q157: -0.009919958027 | R157: -0.009919421843 | S157: -0.01006807046 | T157: -0.9770743378 | U157: -0.9919958027 | V157: -0.9919421843 | W157: -1.006807046 | X157: -0.02984292968 | Y157: -0.02973569292 | Z157: -0.02973270863 | AA157: -0.02962070953 | AB157: 7.727540202e-08
A158: 1.35 | B158: 0.2884814192 | C158: 0.3084159389 | D158: -1.00827703 | E158: -1.00827703 | F158: -3.04180804 | G158: 0.01993451977 | H158: 1.35 | I158: 1.355 | J158: 1.355 | K158: 1.36 | L158: 0.2884814935 | M158: 0.2834474548 | N158: 0.283373403 | O158: 0.2782658965 | P158: -0.01006807745 | Q158: -0.01021618096 | R158: -0.01021559701 | S158: -0.01036308694 | T158: -1.006807745 | U158: -1.021618096 | V158: -1.021559701 | W158: -1.036308694 | X158: -0.02962070258 | Y158: -0.02950391152 | Z158: -0.02950094945 | AA158: -0.02937940309 | AB158: 7.436379956e-08
A159: 1.36 | B159: 0.2782656354 | C159: 0.2983331686 | D159: -1.038695111 | E159: -1.038695111 | F159: -3.018209397 | G159: 0.02006753325 | H159: 1.36 | I159: 1.365 | J159: 1.365 | K159: 1.37 | L159: 0.2782657068 | M159: 0.2730841599 | N159: 0.2730107114 | O159: 0.2677563477 | P159: -0.01036309383 | Q159: -0.01050999081 | R159: -0.01050935914 | S159: -0.01065559508 | T159: -1.036309383 | U159: -1.050999081 | V159: -1.050935914 | W159: -1.065559508 | X159: -0.0293793955 | Y159: -0.02925306266 | Z159: -0.02925012472 | AA159: -0.02911904626 | AB159: 7.142345781e-08
A160: 1.37 | B160: 0.2677560735 | C160: 0.2879462175 | D160: -1.068877205 | E160: -1.068877205 | F160: -2.992664105 | G160: 0.02019014397 | H160: 1.37 | I160: 1.375 | J160: 1.375 | K160: 1.38 | L160: 0.267756142 | M160: 0.2624283411 | N160: 0.2623555435 | O160: 0.2569556242 | P160: -0.01065560186 | Q160: -0.01080119705 | R160: -0.01080051776 | S160: -0.01094540455 | T160: -1.065560186 | U160: -1.080119705 | V160: -1.080051776 | W160: -1.094540455 | X160: -0.02911903803 | Y160: -0.02898318122 | Z160: -0.02898026931 | AA160: -0.02883967917 | AB160: 6.845554884e-08
A161: 1.38 | B161: 0.2569553372 | C161: 0.2772574455 | D161: -1.098803846 | E161: -1.098803846 | F161: -2.965175202 | G161: 0.02030210826 | H161: 1.38 | I161: 1.385 | J161: 1.385 | K161: 1.39 | L161: 0.2569554027 | M161: 0.2514826971 | N161: 0.2514105979 | O161: 0.2458665199 | P161: -0.01094541122 | Q161: -0.01108960957 | R161: -0.01108888278 | S161: -0.01123232551 | T161: -1.094541122 | U161: -1.108960957 | V161: -1.108888278 | W161: -1.123232551 | X161: -0.02883967031 | Y161: -0.02869431259 | Z161: -0.02869142862 | AA161: -0.02854135252 | AB161: 6.546125519e-08
A162: 1.39 | B162: 0.24586622 | C162: 0.266269407 | D162: -1.128455598 | E162: -1.128455598 | F162: -2.9357468 | G162: 0.02040318702 | H162: 1.39 | I162: 1.395 | J162: 1.395 | K162: 1.4 | L162: 0.2458662824 | M162: 0.2402501164 | N162: 0.240178763 | O162: 0.2344920178 | P162: -0.01123233206 | Q162: -0.01137503878 | R162: -0.01137426463 | S162: -0.01151616865 | T162: -1.123233206 | U162: -1.137503878 | V162: -1.137426463 | W162: -1.151616865 | X162: -0.02854134302 | Y162: -0.02838651274 | Z162: -0.02838365861 | AA162: -0.02822412753 | AB162: 6.244176928e-08
A163: 1.4 | B163: 0.2344917051 | C163: 0.254984851 | D163: -1.157813066 | E163: -1.157813066 | F163: -2.904384085 | G163: 0.02049314592 | H163: 1.4 | I163: =$H163+$B$13/2 -> 1.405 | J163: 1.405 | K163: 1.41 | L163: 0.2344917645 | M163: 0.228733677 | N163: 0.2286631167 | O163: 0.2228352902 | P163: -0.01151617508 | Q163: -0.01165729567 | R163: -0.01165647432 | S163: -0.01179674534 | T163: -1.151617508 | U163: -1.165729567 | V163: -1.165647432 | W163: -1.179674534 | X163: -0.02822411739 | Y163: -0.02805984819 | Z163: -0.02805702578 | AA163: -0.02788807598 | AB163: 5.939829303e-08
A164: 1.41 | B164: 0.2228349648 | C164: 0.2434067204 | D164: -1.186856907 | E164: -1.186856907 | F164: -2.871093319 | G164: 0.0205717556 | H164: 1.41 | I164: 1.415 | J164: 1.415 | K164: 1.42 | L164: 0.2228350211 | M164: 0.2169366453 | N164: 0.2168669251 | O164: 0.2108996975 | P164: -0.01179675165 | Q164: -0.01193619198 | R164: -0.01193532363 | S164: -0.01207386772 | T164: -1.179675165 | U164: -1.193619198 | V164: -1.193532363 | W164: -1.207386772 | X164: -0.02788806522 | Y164: -0.027714396 | Z164: -0.0277116072 | AA164: -0.02753328023 | AB164: 5.63320374e-08
A165: 1.42 | B165: 0.2108993594 | C165: 0.2315381513 | D165: -1.21556784 | E165: -1.21556784 | F165: -2.835881838 | G165: 0.02063879187 | H165: 1.42 | I165: 1.425 | J165: 1.425 | K165: 1.43 | L165: 0.2108994127 | M165: 0.2048624757 | N165: 0.2047936425 | O165: 0.1986887875 | P165: -0.01207387391 | Q165: -0.01221154025 | R165: -0.01221062512 | S165: -0.01234734881 | T165: -1.207387391 | U165: -1.221154025 | V165: -1.221062512 | W165: -1.234734881 | X165: -0.02753326883 | Y165: -0.02735024378 | Z165: -0.02734749045 | AA165: -0.02715983312 | AB165: 5.324422181e-08
A166: 1.43 | B166: 0.198688437 | C166: 0.2193824729 | D166: -1.243926658 | E166: -1.243926658 | F166: -2.798758053 | G166: 0.02069403594 | H166: 1.43 | I166: 1.435 | J166: 1.435 | K166: 1.44 | L166: 0.1986884871 | M166: 0.1925148097 | N166: 0.1924469101 | O166: 0.1862062948 | P166: -0.01234735486 | Q166: -0.01248315396 | R166: -0.0124821923 | S166: -0.01261700259 | T166: -1.234735486 | U166: -1.248315396 | V166: -1.24821923 | W166: -1.261700259 | X166: -0.0271598211 | Y166: -0.02696748966 | Z166: -0.02696477367 | AA166: -0.02676783804 | AB166: 5.013607376e-08
A167: 1.44 | B167: 0.1862059318 | C167: 0.2069432063 | D167: -1.271914239 | E167: -1.271914239 | F167: -2.75973145 | G167: 0.02073727456 | H167: 1.44 | I167: 1.445 | J167: 1.445 | K167: 1.45 | L167: 0.1862059788 | M167: 0.1798974745 | N167: 0.179830555 | O167: 0.1734561391 | P167: -0.0126170085 | Q167: -0.01275084763 | R167: -0.01274983971 | S167: -0.01288264415 | T167: -1.26170085 | U167: -1.275084763 | V167: -1.274983971 | W167: -1.288264415 | X167: -0.0267678254 | Y167: -0.02656624227 | Z167: -0.02656356548 | AA167: -0.02635740887 | AB167: 4.700882836e-08
A168: 1.45 | B168: 0.1734557637 | C168: 0.1942240639 | D168: -1.299511553 | E168: -1.299511553 | F168: -2.718812586 | G168: 0.02076830025 | H168: 1.45 | I168: 1.455 | J168: 1.455 | K168: 1.46 | L168: 0.1734558075 | M168: 0.1670144826 | N168: 0.1669485891 | O168: 0.1604424245 | P168: -0.01288264992 | Q168: -0.01301443689 | R168: -0.01301338302 | S168: -0.01314408977 | T168: -1.288264992 | U168: -1.301443689 | V168: -1.301338302 | W168: -1.314408977 | X168: -0.0263573956 | Y168: -0.02614662072 | Z168: -0.02614398499 | AA168: -0.02592866993 | AB168: 4.386372759e-08
A169: 1.46 | B169: 0.1604420369 | C169: 0.1812289484 | D169: -1.326699679 | E169: -1.326699679 | F169: -2.676013089 | G169: 0.02078691147 | H169: 1.46 | I169: 1.465 | J169: 1.465 | K169: 1.47 | L169: 0.1604420776 | M169: 0.1538700299 | N169: 0.1538052083 | O169: 0.1471694385 | P169: -0.01314409538 | Q169: -0.01327373866 | R169: -0.01327263915 | S169: -0.01340115699 | T169: -1.314409538 | U169: -1.327373866 | V169: -1.327263915 | W169: -1.340115699 | X169: -0.02592865606 | Y169: -0.0257087546 | Z169: -0.02570616173 | AA169: -0.02548175601 | AB169: 4.07020202e-08
A170: 1.47 | B170: 0.1471690388 | C170: 0.1679619516 | D170: -1.35345981 | E170: -1.35345981 | F170: -2.631345654 | G170: 0.02079291283 | H170: 1.47 | I170: 1.475 | J170: 1.475 | K170: 1.48 | L170: 0.1471690763 | M170: 0.1404684951 | N170: 0.1404047907 | O170: 0.1336416499 | P170: -0.01340116245 | Q170: -0.01352857116 | R170: -0.01352742637 | S170: -0.01365366481 | T170: -1.340116245 | U170: -1.352857116 | V170: -1.352742637 | W170: -1.365366481 | X170: -0.02548174152 | Y170: -0.02525278386 | Z170: -0.02525023569 | AA170: -0.02501681226 | AB170: 3.752496083e-08
A171: 1.48 | B171: 0.1336412382 | C171: 0.1544273535 | D171: -1.379773267 | E171: -1.379773267 | F171: -2.58482404 | G171: 0.02078611526 | H171: 1.48 | I171: 1.485 | J171: 1.485 | K171: 1.49 | L171: 0.1336412726 | M171: 0.1268144375 | N171: 0.1267518955 | O171: 0.1198637082 | P171: -0.01365367011 | Q171: -0.01377875409 | R171: -0.0137775644 | S171: -0.01390143368 | T171: -1.365367011 | U171: -1.377875409 | V171: -1.37775644 | W171: -1.390143368 | X171: -0.02501679716 | Y171: -0.02477885886 | Z171: -0.02477635718 | AA171: -0.02453399418 | AB171: 3.433380974e-08
A172: 1.49 | B172: 0.1198632847 | C172: 0.1406296208 | D172: -1.405621507 | E172: -1.405621507 | F172: -2.536463069 | G172: 0.02076633618 | H172: 1.49 | I172: 1.495 | J172: 1.495 | K172: 1.5 | L172: 0.1198633158 | M172: 0.1129125964 | N172: 0.1128512614 | O172: 0.1058404413 | P172: -0.01390143881 | Q172: -0.0140241087 | R172: -0.01402287451 | S172: -0.01414428568 | T172: -1.390143881 | U172: -1.40241087 | V172: -1.402287451 | W172: -1.414428568 | X172: -0.02453397849 | Y172: -0.02428714027 | Z172: -0.02428468687 | AA172: -0.02403346758 | AB172: 3.112983232e-08
A173: 1.5 | B173: 0.105840006 | C173: 0.1265734058 | D173: -1.430986138 | E173: -1.430986138 | F173: -2.486278616 | G173: 0.02073339972 | H173: 1.5 | I173: 1.505 | J173: 1.505 | K173: 1.51 | L173: 0.105840034 | M173: 0.09876788864 | N173: 0.09870780501 | O173: 0.09157685432 | P173: -0.01414429065 | Q173: -0.0142644579 | R173: -0.01426317964 | S173: -0.0143820446 | T173: -1.414429065 | U173: -1.42644579 | V173: -1.426317964 | W173: -1.43820446 | X173: -0.02403345129 | Y173: -0.02377779902 | Z173: -0.02377539568 | AA173: -0.02351540851 | AB173: 2.791429841e-08
A174: 1.51 | B174: 0.09157640755 | C174: 0.1122635444 | D174: -1.455848924 | E174: -1.455848924 | F174: -2.434287611 | G174: 0.02068713684 | H174: 1.51 | I174: 1.515 | J174: 1.515 | K174: 1.52 | L174: 0.09157643224 | M174: 0.08438540754 | N174: 0.08432661906 | O174: 0.07707812776 | P174: -0.01438204939 | Q174: -0.01449962635 | R174: -0.01449830448 | S174: -0.01461453604 | T174: -1.438204939 | U174: -1.449962635 | V174: -1.449830448 | W174: -1.461453604 | X174: -0.02351539162 | Y174: -0.02325101627 | Z174: -0.02324866473 | AA174: -0.02298000318 | AB174: 2.468848199e-08
A175: 1.52 | B175: 0.0770776696 | C175: 0.09770505515 | D175: -1.4801918 | E175: -1.4801918 | F175: -2.380508027 | G175: 0.02062738555 | H175: 1.52 | I175: 1.525 | J175: 1.525 | K175: 1.53 | L175: 0.07707769105 | M175: 0.06977042073 | N175: 0.06971297076 | O175: 0.06234961548 | P175: -0.01461454066 | Q175: -0.01472944058 | R175: -0.01472807557 | S175: -0.01484158751 | T175: -1.461454066 | U175: -1.472944058 | V175: -1.472807557 | W175: -1.484158751 | X175: -0.02297998571 | Y175: -0.02270698332 | Z175: -0.02270468532 | AA175: -0.02242744793 | AB175: 2.145366054e-08
A176: 1.53 | B176: 0.0623491461 | C176: 0.08290313715 | D176: -1.50399688 | E176: -1.50399688 | F176: -2.32495888 | G176: 0.02055399105 | H176: 1.53 | I176: 1.535 | J176: 1.535 | K176: 1.54 | L176: 0.06234916431 | M176: 0.05492836834 | N176: 0.05487229976 | O176: 0.04739684286 | P176: -0.01484159194 | Q176: -0.01495372909 | R176: -0.01495232145 | S176: -0.01506302853 | T176: -1.484159194 | U176: -1.495372909 | V176: -1.495232145 | W176: -1.506302853 | X176: -0.02242742989 | Y176: -0.02214590154 | Z176: -0.0221436588 | AA176: -0.02185794916 | AB176: 1.821111459e-08
A177: 1.54 | B177: 0.04739636242 | C177: 0.06786316834 | D177: -1.527246469 | E177: -1.527246469 | F177: -2.267660218 | G177: 0.02046680592 | H177: 1.54 | I177: 1.545 | J177: 1.545 | K177: 1.55 | L177: 0.04739637738 | M177: 0.039864861 | N177: 0.03981021617 | O177: 0.0322255047 | P177: -0.01506303277 | Q177: -0.01517232243 | R177: -0.01517087269 | S177: -0.01527869074 | T177: -1.506303277 | U177: -1.517232243 | V177: -1.517087269 | W177: -1.527869074 | X177: -0.02185793054 | Y177: -0.02156798232 | Z177: -0.02156579653 | AA177: -0.02127172319 | AB177: 1.496212721e-08
A178: 1.55 | B178: 0.03222501339 | C178: 0.05259070365 | D178: -1.549923071 | E178: -1.549923071 | F178: -2.208633115 | G178: 0.02036569027 | H178: 1.55 | I178: 1.555 | J178: 1.555 | K178: 1.56 | L178: 0.03222502509 | M178: 0.0245856777 | N178: 0.02453249844 | O178: 0.01684146307 | P178: -0.01527869479 | Q178: -0.01538505331 | R178: -0.01538356203 | S178: -0.01548840799 | T178: -1.527869479 | U178: -1.538505331 | V178: -1.538356203 | W178: -1.548840799 | X178: -0.02127170401 | Y178: -0.02097344698 | Z178: -0.02097131981 | AA178: -0.02066899628 | AB178: 1.170798351e-08
A179: 1.56 | B179: 0.01684096107 | C179: 0.03709147294 | D179: -1.572009402 | E179: -1.572009402 | F179: -2.147899667 | G179: 0.02025051187 | H179: 1.56 | I179: 1.565 | J179: 1.565 | K179: 1.57 | L179: 0.01684096952 | M179: 0.009096763592 | N179: 0.00904509115 | O179: 0.001250745034 | P179: -0.01548841185 | Q179: -0.01559175673 | R179: -0.01559022448 | S179: -0.01569201645 | T179: -1.548841185 | U179: -1.559175673 | V179: -1.559022448 | W179: -1.569201645 | X179: -0.02066897653 | Y179: -0.02036252666 | Z179: -0.02036045976 | AA179: -0.02005000444 | AB179: 8.449970081e-09
A180: 1.57 | B180: 0.001250232539 | C180: 0.02137137891 | D180: -1.593488399 | E180: -1.593488399 | F180: -2.085482979 | G180: 0.02012114638 | H180: 1.57 | I180: 1.575 | J180: 1.575 | K180: 1.58 | L180: 0.001250237729 | M180: -0.006595772324 | N180: -0.006645897284 | O180: -0.01454045969 | P180: -0.01569202011 | Q180: -0.01579227003 | R180: -0.01579069742 | S180: -0.01588935468 | T180: -1.569202011 | U180: -1.579227003 | V180: -1.579069742 | W180: -1.588935468 | X180: -0.02004998414 | Y180: -0.01973546228 | Z180: -0.01973345728 | AA180: -0.0194149934 | AB180: 5.189374574e-09
A181: 1.58 | B181: -0.01454098248 | C181: 0.005436494924 | D181: -1.614343229 | E181: -1.614343229 | F181: -2.021407159 | G181: 0.0199774774 | H181: 1.58 | I181: 1.585 | J181: 1.585 | K181: 1.59 | L181: -0.01454098055 | M181: -0.02248565962 | N181: -0.02253419705 | O181: -0.0305258012 | P181: -0.01588935813 | Q181: -0.015986433 | R181: -0.01598482066 | S181: -0.01608026376 | T181: -1.588935813 | U181: -1.5986433 | V181: -1.598482066 | W181: -1.608026376 | X181: -0.01941497257 | Y181: -0.01909250438 | Z181: -0.01909056289 | AA181: -0.01876421852 | AB181: 1.927485111e-09
A182: 1.59 | B182: -0.03052633408 | C182: -0.01070693737 | D182: -1.6345573 | E182: -1.6345573 | F182: -1.955697308 | G182: 0.01981939672 | H182: 1.59 | I182: 1.595 | J182: 1.595 | K182: 1.6 | L182: -0.03052633542 | M182: -0.03856646892 | N182: -0.03861337941 | O182: -0.04669877199 | P182: -0.01608026701 | Q182: -0.016174088 | R182: -0.01617243657 | S182: -0.01626458738 | T182: -1.608026701 | U182: -1.6174088 | V182: -1.617243657 | W182: -1.626458738 | X182: -0.01876419715 | Y182: -0.01843391311 | Z182: -0.01843203669 | AA182: -0.01809794464 | AB182: -1.334410193e-09
A183: 1.6 | B183: -0.04669931474 | C183: -0.02705251037 | D183: -1.654114274 | E183: -1.654114274 | F183: -1.88837951 | G183: 0.01964680437 | H183: 1.6 | I183: =$H183+$B$13/2 -> 1.605 | J183: 1.605 | K183: 1.61 | L183: -0.04669931934 | M183: -0.05483161454 | N183: -0.05487685935 | O183: -0.06305270954 | P183: -0.01626459041 | Q183: -0.01635508003 | R183: -0.0163533902 | S183: -0.01644217189 | T183: -1.626459041 | U183: -1.635508003 | V183: -1.63533902 | W183: -1.644217189 | X183: -0.01809792274 | Y183: -0.01775995801 | Z183: -0.01775814822 | AA183: -0.01741644599 | AB183: -4.595023743e-09
A184: 1.61 | B184: -0.06305326194 | C184: -0.04359365311 | D184: -1.672998069 | E184: -1.672998069 | F184: -1.819480824 | G184: 0.01945960884 | H184: 1.61 | I184: 1.615 | J184: 1.615 | K184: 1.62 | L184: -0.0630532698 | M184: -0.07127435715 | N184: -0.07131789821 | O184: -0.0795807991 | P184: -0.01644217471 | Q184: -0.01652925683 | R184: -0.0165275293 | S184: -0.01661286648 | T184: -1.644217471 | U184: -1.652925683 | V184: -1.65275293 | W184: -1.661286648 | X184: -0.01741642358 | Y184: -0.01707091802 | Z184: -0.01706917638 | AA184: -0.0167200061 | AB184: -7.853068959e-09
A185: 1.62 | B185: -0.07958136093 | C185: -0.06032363379 | D185: -1.691192877 | E185: -1.691192877 | F185: -1.749029271 | G185: 0.01925772714 | H185: 1.62 | I185: 1.625 | J185: 1.625 | K185: 1.63 | L185: -0.07958137204 | M185: -0.08788780658 | N185: -0.08792960654 | O185: -0.09627607652 | P185: -0.01661286908 | Q185: -0.01669646899 | R185: -0.01669470448 | S185: -0.01677652317 | T185: -1.661286908 | U185: -1.669646899 | V185: -1.669470448 | W185: -1.677652317 | X185: -0.01671998318 | Y185: -0.01636708126 | Z185: -0.01636540926 | AA185: -0.01600891767 | AB185: -1.110726079e-08
A186: 1.63 | B186: -0.09627664755 | C186: -0.07723556256 | D186: -1.70868317 | E186: -1.70868317 | F186: -1.677053823 | G186: 0.01904108499 | H186: 1.63 | I186: 1.635 | J186: 1.635 | K186: 1.64 | L186: -0.09627666191 | M186: -0.1046649247 | N186: -0.1047049469 | O186: -0.1131314312 | P186: -0.01677652555 | Q186: -0.01685657002 | R186: -0.01685476927 | S186: -0.01693299699 | T186: -1.677652555 | U186: -1.685657002 | V186: -1.685476927 | W186: -1.693299699 | X186: -0.01600889426 | Y186: -0.01564874498 | Z186: -0.01564714409 | AA186: -0.01528348243 | AB186: -1.435631625e-08
A187: 1.64 | B187: -0.1131320112 | C187: -0.09432239426 | D187: -1.725453708 | E187: -1.725453708 | F187: -1.603584391 | G187: 0.0188096169 | H187: 1.64 | I187: 1.645 | J187: 1.645 | K187: 1.65 | L187: -0.1131320288 | M187: -0.1215985283 | N187: -0.121636737 | O187: -0.130139609 | P187: -0.01693299914 | Q187: -0.01700941643 | R187: -0.01700758022 | S187: -0.01708214601 | T187: -1.693299914 | U187: -1.700941643 | V187: -1.700758022 | W187: -1.708214601 | X187: -0.01528345853 | Y187: -0.01491621541 | Z187: -0.01491468706 | AA187: -0.01454401104 | AB187: -1.759895485e-08
A188: 1.65 | B188: -0.1301401977 | C188: -0.1115769313 | D188: -1.741489552 | E188: -1.741489552 | F188: -1.528651814 | G188: 0.01856326633 | H188: 1.65 | I188: 1.655 | J188: 1.655 | K188: 1.66 | L188: -0.1301402185 | M188: -0.1386812925 | N188: -0.1387176524 | O188: -0.1472932155 | P188: -0.01708214793 | Q188: -0.01715486786 | R188: -0.01715299697 | S188: -0.01722383146 | T188: -1.708214793 | U188: -1.715486786 | V188: -1.715299697 | W188: -1.722383146 | X188: -0.01454398666 | Y188: -0.01416980761 | Z188: -0.01416835322 | AA188: -0.01379082292 | AB188: -2.083389919e-08
A189: 1.66 | B189: -0.1472938126 | C189: -0.1289918269 | D189: -1.75677607 | E189: -1.75677607 | F189: -1.452287847 | G189: 0.01830198576 | H189: 1.66 | I189: 1.665 | J189: 1.665 | K189: 1.67 | L189: -0.1472938367 | M189: -0.1559057533 | N189: -0.1559402302 | O189: -0.1645847191 | P189: -0.01722383315 | Q189: -0.01729278714 | R189: -0.01729088238 | S189: -0.01735791781 | T189: -1.722383315 | U189: -1.729278714 | V189: -1.729088238 | W189: -1.735791781 | X189: -0.01379079807 | Y189: -0.0134098454 | Z189: -0.01340846632 | AA189: -0.01302424616 | AB189: -2.405987543e-08
A190: 1.67 | B190: -0.1645853244 | C190: -0.1465595876 | D190: -1.771298948 | E190: -1.771298948 | F190: -1.374525142 | G190: 0.01802573685 | H190: 1.67 | I190: 1.675 | J190: 1.675 | K190: 1.68 | L190: -0.1645853517 | M190: -0.1732643113 | N190: -0.1732968719 | O190: -0.1820064542 | P190: -0.01735791926 | Q190: -0.01742304037 | R190: -0.01742110257 | S190: -0.01748427285 | T190: -1.735791926 | U190: -1.742304037 | V190: -1.742110257 | W190: -1.748427285 | X190: -0.01302422086 | Y190: -0.01263666112 | Z190: -0.0126353587 | AA190: -0.01224461734 | AB190: -2.727561371e-08
A191: 1.68 | B191: -0.1820070675 | C191: -0.164272577 | D191: -1.7850442 | E191: -1.7850442 | F191: -1.295397243 | G191: 0.01773449049 | H191: 1.68 | I191: 1.685 | J191: 1.685 | K191: 1.69 | L191: -0.182007098 | M191: -0.190749235 | N191: -0.1907798465 | O191: -0.199550625 | P191: -0.01748427406 | Q191: -0.01754549702 | R191: -0.01754352704 | S191: -0.01760276777 | T191: -1.748427406 | U191: -1.754549702 | V191: -1.754352704 | W191: -1.760276777 | X191: -0.01224459159 | Y191: -0.01185059558 | Z191: -0.01184937112 | AA191: -0.01145228141 | AB191: -3.047984884e-08
A192: 1.69 | B192: -0.199551246 | C192: -0.182123019 | D192: -1.797998172 | E192: -1.797998172 | F192: -1.214938565 | G192: 0.01742822695 | H192: 1.69 | I192: 1.695 | J192: 1.695 | K192: 1.7 | L192: -0.1995512797 | M192: -0.208352664 | N192: -0.2083812947 | O192: -0.2172093084 | P192: -0.01760276874 | Q192: -0.01766003001 | R192: -0.01765802872 | S192: -0.01771327726 | T192: -1.760276874 | U192: -1.766003001 | V192: -1.765802872 | W192: -1.771327726 | X192: -0.01145225523 | Y192: -0.01105199787 | Z192: -0.01105085264 | AA192: -0.01064759152 | AB192: -3.367132059e-08
A193: 1.7 | B193: -0.2172099367 | C193: -0.2001030008 | D193: -1.810147558 | E193: -1.810147558 | F193: -1.133184382 | G193: 0.01710693597 | H193: 1.7 | I193: 1.705 | J193: 1.705 | K193: 1.71 | L193: -0.2172099736 | M193: -0.2260666126 | N193: -0.2260932315 | O193: -0.2349744577 | P193: -0.01771327798 | Q193: -0.01776651581 | R193: -0.01776448411 | S193: -0.01781567959 | T193: -1.771327798 | U193: -1.776651581 | V193: -1.776448411 | W193: -1.781567959 | X193: -0.01064756491 | Y193: -0.01024122519 | Z193: -0.01024016043 | AA193: -0.009830908854 | AB193: -3.684877425e-08
A194: 1.71 | B194: -0.2349750931 | C194: -0.2182044763 | D194: -1.821479402 | E194: -1.821479402 | F194: -1.050170811 | G194: 0.01677061679 | H194: 1.71 | I194: 1.715 | J194: 1.715 | K194: 1.72 | L194: -0.2349751331 | M194: -0.2438829732 | N194: -0.2439075504 | O194: -0.2528379064 | P194: -0.01781568006 | Q194: -0.01786483447 | R194: -0.01786277327 | S194: -0.01790985665 | T194: -1.781568006 | U194: -1.786483447 | V194: -1.786277327 | W194: -1.790985665 | X194: -0.009830881836 | Y194: -0.00941864273 | Z194: -0.009417659642 | AA194: -0.009002602516 | AB194: -4.001096127e-08
A195: 1.72 | B195: -0.2528385487 | C195: -0.2364192704 | D195: -1.83198111 | E195: -1.83198111 | F195: -0.9659347958 | G195: 0.01641927832 | H195: 1.72 | I195: 1.725 | J195: 1.725 | K195: 1.73 | L195: -0.2528385918 | M195: -0.2617935203 | N195: -0.2618160267 | O195: -0.2707913718 | P195: -0.01790985687 | Q195: -0.01795486975 | R195: -0.01795277999 | S195: -0.0179956941 | T195: -1.790985687 | U195: -1.795486975 | V195: -1.795277999 | W195: -1.79956941 | X195: -0.009002575099 | Y195: -0.008584623481 | Z195: -0.008583723224 | AA195: -0.008163049318 | AB195: -4.315663948e-08
A196: 1.73 | B196: -0.2707920206 | C196: -0.2547390815 | D196: -1.841640458 | E196: -1.841640458 | F196: -0.8805140933 | G196: 0.01605293917 | H196: 1.73 | I196: 1.735 | J196: 1.735 | K196: 1.74 | L196: -0.2707920669 | M196: -0.2797899139 | N196: -0.2798103215 | O196: -0.2888264587 | P196: -0.01799569407 | Q196: -0.01803650918 | R196: -0.01803439181 | S196: -0.01807308139 | T196: -1.799569407 | U196: -1.803650918 | V196: -1.803439181 | W196: -1.807308139 | X196: -0.008163021515 | Y196: -0.007739548078 | Z196: -0.007738731775 | AA196: -0.007312633632 | AB196: -4.628457378e-08
A197: 1.74 | B197: -0.2888271138 | C197: -0.273155486 | D197: -1.850445599 | E197: -1.850445599 | F197: -0.793947254 | G197: 0.01567162772 | H197: 1.74 | I197: 1.745 | J197: 1.745 | K197: 1.75 | L197: -0.2888271631 | M197: -0.2978637037 | N197: -0.2978819852 | O197: -0.3069346633 | P197: -0.01807308109 | Q197: -0.01810964412 | R197: -0.01810750012 | S197: -0.01814191183 | T197: -1.807308109 | U197: -1.810964412 | V197: -1.810750012 | W197: -1.814191183 | X197: -0.007312605455 | Y197: -0.006883804626 | Z197: -0.006883073365 | AA197: -0.006451747215 | AB197: -4.939353659e-08
A198: 1.75 | B198: -0.3069353242 | C198: -0.291659942 | D198: -1.858385071 | E198: -1.858385071 | F198: -0.7062736065 | G198: 0.01527538221 | H198: 1.75 | I198: 1.755 | J198: 1.755 | K198: 1.76 | L198: -0.3069353767 | M198: -0.3160063323 | N198: -0.3160224616 | O198: -0.3251073769 | P198: -0.01814191127 | Q198: -0.01817416987 | R198: -0.01817200022 | S198: -0.01820208271 | T198: -1.814191127 | U198: -1.817416987 | V198: -1.817200022 | W198: -1.820208271 | X198: -0.006451718677 | Y198: -0.006017788527 | Z198: -0.006017143355 | AA198: -0.00558078903 | AB198: -5.248230833e-08
A199: 1.76 | B199: -0.3251080435 | C199: -0.3102437927 | D199: -1.865447807 | E199: -1.865447807 | F199: -0.6175332398 | G199: 0.01486425079 | H199: 1.76 | I199: 1.765 | J199: 1.765 | K199: 1.77 | L199: -0.3251080991 | M199: -0.33420914 | N199: -0.3342230919 | O199: -0.3433358905 | P199: -0.01820208189 | Q199: -0.01822998569 | R199: -0.0182277914 | S199: -0.01825349534 | T199: -1.820208189 | U199: -1.822998569 | V199: -1.82277914 | W199: -1.825349534 | X199: -0.005580760144 | Y199: -0.0051419023 | Z199: -0.005141344224 | AA199: -0.004700165063 | AB199: -5.55496778e-08
A200: 1.77 | B200: -0.3433365624 | C200: -0.3288982708 | D200: -1.87162314 | E200: -1.87162314 | F200: -0.527766985 | G200: 0.01443829158 | H200: 1.77 | I200: 1.775 | J200: 1.775 | K200: 1.78 | L200: -0.343336621 | M200: -0.3524633681 | N200: -0.3524751184 | O200: -0.361611398 | P200: -0.01825349426 | Q200: -0.01827699494 | R200: -0.01827477703 | S200: -0.01829605511 | T200: -1.825349426 | U200: -1.827699494 | V200: -1.827477703 | W200: -1.829605511 | X200: -0.004700135843 | Y200: -0.004256555395 | Z200: -0.004256085382 | AA200: -0.003810288143 | AB200: -5.859444274e-08
A201: 1.78 | B201: -0.3616120749 | C201: -0.3476145022 | D201: -1.87690081 | E201: -1.87690081 | F201: -0.4370163975 | G201: 0.01399757271 | H201: 1.78 | I201: 1.785 | J201: 1.785 | K201: 1.79 | L201: -0.3616121365 | M201: -0.3707601634 | N201: -0.3707696891 | O201: -0.3799250011 | P201: -0.01829605377 | Q201: -0.01831510506 | R201: -0.01831286459 | S201: -0.0183296716 | T201: -1.829605377 | U201: -1.831510506 | V201: -1.831286459 | W201: -1.83296716 | X201: -0.003810258602 | Y201: -0.003362164011 | Z201: -0.003361782985 | AA201: -0.002911577745 | AB201: -6.161541027e-08
... 820 more rows

Sheet Sheet1

Sheet お問合せ
B2: 技術的なご質問のみお受けします。
C4: sxsijk@Gmail.com | D4: sxsijk@Gmail.com
E120: =C120-C$21 -> 0
E121: =IF(C121<0,C121+360,C121)-IF(C$22<0,C$22+360,C$22) -> 0
E122: =C122-C$23 -> 0
E124: =C124-C$17 -> 0
E125: =C125-C$18 -> 0
E126: =C126-C$19 -> 0
E127: =C127-C$20 -> 0
E128: =C128-C$21 -> 0
E129: =IF(C129<0,C129+360,C129)-IF(C$22<0,C$22+360,C$22) -> 0
E130: =C130-C$23 -> 0
E131: =C131-C$24 -> 0
E132: =C132-C$25 -> 0
E133: =C133-C$26 -> 0
E134: =C134-C$27 -> 0
C137: 35 | E137: =C137-C$17 -> 35
B138: λp | E138: =C138-C$18 -> 0
E139: =C139-C$19 -> 0
C140: =SQRT(((#REF!^2*COS(RADIANS(C137)))^2+(#REF!^2*SIN(RADIANS(C137)))^2)/(#REF!^2*(1-C$4*SIN(RADIANS(C137))^2))) ->  | E140: =C140-C$20 -> 
C141: =DEGREES(C143/C140) ->  | E141: =C141-C$25 -> 
E142: =C142-C$26 -> 0
E143: =C143-C$27 -> 0
E144: =IF(C144<0,C144+360,C144)-IF(C$22<0,C$22+360,C$22) -> 0
E145: =C145-C$23 -> 0
C146: =DEGREES(ATAN2((1-C$4)*COS(RADIANS(C145)),SIN(RADIANS(C145)))) ->  | E146: =C146-C$21 -> 
C147: =SQRT(((#REF!^2*COS(RADIANS(C146)))^2+(#REF!^2*SIN(RADIANS(C146)))^2)/(#REF!^2*(1-C$4*SIN(RADIANS(C146))^2))) ->  | E147: =C147-C$24 -> 
C148: =DEGREES(ACOS(COS(RADIANS(C$139))*COS(RADIANS(C145))*(COS(RADIANS(C$138))*COS(RADIANS(C144))+SIN(RADIANS(C$138))*SIN(RADIANS(C144)))+SIN(RADIANS(C$139))*SIN(RADIANS(C145)))) -> 0 | E148: =C148-C$25 -> 0
C149: =DEGREES(ATAN2(COS(RADIANS(C$139))*SIN(RADIANS(C145))-SIN(RADIANS(C$139))*COS(RADIANS(C145))*COS(RADIANS(C144-C$138)),COS(RADIANS(C145))*SIN(RADIANS(C144-C$138)))) ->  | E149: =C149-C$26 -> 
C150: =SQRT(((C$140-C147)*COS(RADIANS(C148/2)))^2+(MAX(C$140,C147)*RADIANS(C148)-ABS(C$140-C147)*SIN(RADIANS(C148/2)))^2) ->  | E150: =C150-C$27 -> 
A151: 補正 | B151: θ＝θ+(d0-d)/r | C151: =C141+DEGREES((C143-C150)/C147) ->  | E151: =C151-C$25 -> 
C152: =C142 -> 0 | E152: =C152-C$26 -> 0
C153: =C143 -> 0 | E153: =C153-C$27 -> 0
E154: =IF(C154<0,C154+360,C154)-IF(C$22<0,C$22+360,C$22) -> 0
E155: =C155-C$23 -> 0
C156: =DEGREES(ATAN2((1-C$4)*COS(RADIANS(C155)),SIN(RADIANS(C155)))) ->  | E156: =C156-C$21 -> 
C157: =SQRT(((#REF!^2*COS(RADIANS(C156)))^2+(#REF!^2*SIN(RADIANS(C156)))^2)/(#REF!^2*(1-C$4*SIN(RADIANS(C156))^2))) ->  | E157: =C157-C$24 -> 
C158: =DEGREES(ACOS(COS(RADIANS(C$139))*COS(RADIANS(C155))*(COS(RADIANS(C$138))*COS(RADIANS(C154))+SIN(RADIANS(C$138))*SIN(RADIANS(C154)))+SIN(RADIANS(C$139))*SIN(RADIANS(C155)))) -> 0 | E158: =C158-C$25 -> 0
C159: =DEGREES(ATAN2(COS(RADIANS(C$139))*SIN(RADIANS(C155))-SIN(RADIANS(C$139))*COS(RADIANS(C155))*COS(RADIANS(C154-C$138)),COS(RADIANS(C155))*SIN(RADIANS(C154-C$138)))) ->  | E159: =C159-C$26 -> 
C160: =SQRT(((C$140-C157)*COS(RADIANS(C158/2)))^2+(MAX(C$140,C157)*RADIANS(C158)-ABS(C$140-C157)*SIN(RADIANS(C158/2)))^2) ->  | E160: =C160-C$27 -> 
